DATE OF TRANSACTION,LA DEPARTMENT INCURRING SPEND,BENEFICIARY,GROSS AMOUNT,SUMMARY OF PURPOSEOF SPEND,MERCHANT CATEGORY
27/12/2019,HEATHSIDE,AMZNMKTPLACE AMAZON.CO,367.92,EQUIPMENT,MISCELLANEOUS AND SPECIALTY RETAIL STORES
27/12/2019,NW NIL RECOURSE TO PUBLIC FUNDS CARE,THE WOKING HOTEL,465.64,CATERING FIRE,"LODGING-HOTELS,MOTELS,RESORTS-NOT CLASSIFIED"
30/12/2019,NE SECTION 17 CARE,TRAVELODGE GB0000,307.93,INDEPENDENT LIVING PLACEMENTS,TRAVELODGE
30/12/2019,WAVERLEY CMHRS CARE,TRAVELODGE GB0000,841.36,OTHER COMMUNITY CARE PRIV,TRAVELODGE
30/12/2019,NW NIL RECOURSE TO PUBLIC FUNDS CARE,THE WOKING HOTEL,931.28,INDEPENDENT LIVING PLACEMENTS,"LODGING-HOTELS,MOTELS,RESORTS-NOT CLASSIFIED"
31/12/2019,LIBERTAS COMMUNITY HOME,SLEEPWELL,256.01,FURNITURE,"EQUIP, FURNITURE, HOME FURNSHNGS STRS (EXCPT APPL)"
31/12/2019,ABBEYWOOD,AMZNMKTPLACE,374.47,E25 CATERING EQUIPMENT,MISCELLANEOUS AND SPECIALTY RETAIL STORES
02/01/2020,ENSEMBLES & TOURS,MDS HIRE & COPYRIGHT,391.25,CURRIC BOOKS,"COMP PROGRAMING,DATA PRCSNG,INTGRTD SYS DSGN SRVS"
02/01/2020,COMMUNICATIONS TEAM,SP   BIG CITY MUSIC,856.75,EQUIPMENT,MEN'S AND WOMEN'S CLOTHING STORES
03/01/2020,TRANSPORT,CHRISTIAN FAVERSHAM GR,893.26,HEATING OIL & FUEL,"EQUIPMENT RENTAL&LEASING SVS, FURNTURE/TOOL RENTAL"
06/01/2020,FINANCIAL ASSESSMENTS AND BENEFITS TEAM,TRAINING SYNERGY LTD,270.00,TRAINING USING EXTERNAL PROVIDERS,"COMP PROGRAMING,DATA PRCSNG,INTGRTD SYS DSGN SRVS"
06/01/2020,53 WESTFIELD RD,JOHN LEWIS,335.00,EQUIPMENT,DEPARTMENT STORES
06/01/2020,NE SECTION 17 CARE,TRAVELODGE GB0000,383.93,INDEPENDENT LIVING PLACEMENTS,TRAVELODGE
06/01/2020,TRANSPORT,AMZNMKTPLACE AMAZON.CO,540.00,FURNITURE,MISCELLANEOUS AND SPECIALTY RETAIL STORES
06/01/2020,HEAD OF FAMILY RESILIENCE,MIPERMIT LTD,"2,016.00",OTHER COMMUNITY CARE VOL,AUTOMOBILE PARKING LOTS AND GARAGES
06/01/2020,IMT CRITICAL ENVIRONMENTS,WWW.TALKTALKBUSINESS.C,"2,206.52",TELECOMMUNICATION CHARGES,COMPUTER NETWORK/INFORMATION SERVICES
07/01/2020,LOWER MOLE COUNTRYSIDE PROJECT,WWW.DEFIBSHOP.CO.UK,264.00,EQUIPMENT,"SCHOOLS, TRADE AND VOCATIONAL"
07/01/2020,MENTAL HEALTH MANAGEMENT TEAM,THOMSON REUTERS UK LTD,340.00,SPECIALIST EDUCATIONAL STATIONERY,PROFESSIONAL SERVICES-NOT ELSEWHERE CLASSIFIED
07/01/2020,TRANSPORT,AMZNMKTPLACE AMAZON.CO,349.00,EQUIPMENT,MISCELLANEOUS AND SPECIALTY RETAIL STORES
07/01/2020,INSTRUMENT HIRE SHOP,WWW.ALDAUTOMOTIVE.CO.U,364.58,HIRE OF VEHICLES,BUSINESS SERVICES-NOT ELSEWHERE CLASSIFIED
08/01/2020,SURREY HILLS AONB,ROYAL TOWN PLANNING,315.00,SUBSCRIPTIONS,"ORGANIZATIONS, CHARITABLE AND SOCIAL SERVICES"
08/01/2020,TRANSPORT,AMAZON.CO.UK 4A3EM10P5,318.49,FURNITURE,DIRECT MARKETING-OTHER DIRECT MARKETERS/NOT ELSEW.
09/01/2020,LOWER MOLE COUNTRYSIDE PROJECT,DVLA VEHICLE TAX,262.50,VEHICLE RUNNING COSTS,TAX PAYMENTS
09/01/2020,BURBANK COMMUNITY HOME,SAINSBURYS TO YOU 0686,280.20,PURCHASE OF FOOD (RAW MATERIALS),"GROCERY STORES, SUPERMARKETS"
09/01/2020,BARNFIELD,MARSDEN FIRE SAFETY LT,291.00,EQUIPMENT,COMPUTER SOFTWARE STORES
09/01/2020,EQUIPMENT SCC BUDGET,FIRSTCHOICE CATERING S,299.33,EQUIPMENT,INDUSTRIAL SUPPLIES NOT ELSEWHERE CLASSIFIED
09/01/2020,TRANSPORT,SAFEQUIP LTD,300.00,VEHICLE REPAIRS AND MAINTENANCE,BUSINESS SERVICES-NOT ELSEWHERE CLASSIFIED
09/01/2020,I & E TEST PURCHASES                    ,RED SNAPPER LTD,351.00,CONSULTANTS,"CONSULTING, MANAGEMENT, AND PUBLIC RELATIONS SVCS"
09/01/2020,RIGHTS & PARTICIPATION TEAM,GOVERNMENT EVENTS,396.78,TRAINING USING EXTERNAL PROVIDERS,"ASSOCIATIONS-CIVIC, SOCIAL, AND FRATERNAL"
09/01/2020,RIGHTS & PARTICIPATION TEAM,GOVERNMENT EVENTS,396.78,TRAINING USING EXTERNAL PROVIDERS,"ASSOCIATIONS-CIVIC, SOCIAL, AND FRATERNAL"
09/01/2020,TRANSPORT,BRAUNABILITY UK LTD,457.68,VEHICLE REPAIRS AND MAINTENANCE,SPORTING GOODS STORES
09/01/2020,ORBIS HR REWARD,SOUTH EAST EMPLOYERS,477.60,TRAINING EXPENSES EXTERNAL GENERAL,"ORGANIZATIONS, MEMBERSHIP-NOT ELSEWHERE CLASSIFIED"
09/01/2020,TRAINING AND DEVELOPMENT,WWW.CFOASERVICES.CO.UK,"1,800.00",SUBSISTENCE AND CONFERENCE EXPENSES,"ORGANIZATIONS, MEMBERSHIP-NOT ELSEWHERE CLASSIFIED"
10/01/2020,NE SECTION 17 CARE,TRAVELODGE GB0000,313.93,INDEPENDENT LIVING PLACEMENTS,TRAVELODGE
10/01/2020,PARKING TEAM,AMZNMKTPLACE AMAZON.CO,320.30,EQUIPMENT,MISCELLANEOUS AND SPECIALTY RETAIL STORES
10/01/2020,MALLOW CRESCENT,WWW.IKEA.COM,384.00,FURNITURE,"EQUIP, FURNITURE, HOME FURNSHNGS STRS (EXCPT APPL)"
10/01/2020,COM BUSINESS SUPPORT,SURVEYMONKEY,384.00,SUBSCRIPTIONS,"COMP PROGRAMING,DATA PRCSNG,INTGRTD SYS DSGN SRVS"
10/01/2020,MALLOW CRESCENT,WWW.IKEA.COM,422.00,FURNITURE,"EQUIP, FURNITURE, HOME FURNSHNGS STRS (EXCPT APPL)"
10/01/2020,ABBEYWOOD,AMAZON.CO.UK UA3ZB9RR5,443.28,FURNITURE,DIRECT MARKETING-OTHER DIRECT MARKETERS/NOT ELSEW.
10/01/2020,PROPERTY OPERATIONS TEAM,WP-THE INSTITUTION,533.00,SUBSCRIPTIONS,"ORGANIZATIONS, MEMBERSHIP-NOT ELSEWHERE CLASSIFIED"
10/01/2020,HR - COUNTYWIDE TRAINING,WWW.PMGLTD.CO.UK,534.00,TRAINING EXPENSES EXTERNAL GENERAL,BUSINESS SERVICES-NOT ELSEWHERE CLASSIFIED
10/01/2020,HR - COUNTYWIDE TRAINING,WWW.PMGLTD.CO.UK,534.00,TRAINING EXPENSES EXTERNAL GENERAL,BUSINESS SERVICES-NOT ELSEWHERE CLASSIFIED
10/01/2020,PERFORMANCE TEAM,PAYPAL  TRAINLINE,547.05,MISCELLANEOUS STAFF TRAVEL,TRANSPORTATION SERVICES NOT ELSEWHERE CLASSIFIED
10/01/2020,LIBERTAS COMMUNITY HOME,WWW.IKEA.COM,582.70,EQUIPMENT,"EQUIP, FURNITURE, HOME FURNSHNGS STRS (EXCPT APPL)"
11/01/2020,CS BUSINESS SUPPORT EAST,AMZNMKTPLACE,310.88,OTHER COMMUNITY CARE VOL,MISCELLANEOUS AND SPECIALTY RETAIL STORES
12/01/2020,WOODLANDS COMMUNITY HOME,CEX,250.00,EDUC VISITS/HOLS/CAMPS/TOYS,ELECTRICAL PARTS AND EQUIPMENT
12/01/2020,DEVELOPMENT TEAM,MSFT   E01009WX2P,357.83,SUBSCRIPTIONS,"COMPUTERS, COMPUTER PERIPHERAL EQUIPMENT, SOFTWARE"
12/01/2020,PSSS ICT SUPPORT,AMAZON.CO.UK LH6KR2PM5,534.85,EQUIPMENT,DIRECT MARKETING-OTHER DIRECT MARKETERS/NOT ELSEW.
12/01/2020,TRANSPORT,AMZNMKTPLACE,543.96,FURNITURE,MISCELLANEOUS AND SPECIALTY RETAIL STORES
12/01/2020,PORTAGE SERVICE (NE),AMZNMKTPLACE,781.91,EQUIPMENT,MISCELLANEOUS AND SPECIALTY RETAIL STORES
12/01/2020,DEVELOPMENT TEAM,MSFT   E01009WRUG,"2,514.32",SUBSCRIPTIONS,"COMPUTERS, COMPUTER PERIPHERAL EQUIPMENT, SOFTWARE"
13/01/2020,LIBERTAS COMMUNITY HOME,WAITROSE 589,250.00,3RD PARTY PAYMENTS PRIVATE INDIV,"GROCERY STORES, SUPERMARKETS"
13/01/2020,ACT,AMZNMKTPLACE AMAZON.CO,293.47,EQUIPMENT,MISCELLANEOUS AND SPECIALTY RETAIL STORES
13/01/2020,COMMUNICATIONS TEAM,PAYPAL  CREATIVECOM,354.00,TRAINING USING EXTERNAL PROVIDERS,"CONSULTING, MANAGEMENT, AND PUBLIC RELATIONS SVCS"
13/01/2020,SHELL UK LICENSING,KENT SCIENTIFIC SERVIC,625.00,FEES,GOVERNMENT SERVICES-NOT ELSEWHERE CLASSIFIED
13/01/2020,SHELL UK LICENSING,HERTFORDSHIRE COUNTY C,625.00,FEES,SCHOOLS & EDUCATIONAL SVC-NOT ELSEWHERE CLASSIFIED
13/01/2020,SHELL UK LICENSING,ANGUS COUNCIL,625.00,FEES,GOVERNMENT SERVICES-NOT ELSEWHERE CLASSIFIED
13/01/2020,HEAD OF SERVICE,WWW.OCEANMEDIA.CO,708.00,SUBSISTENCE AND CONFERENCE EXPENSES,MISCELLANEOUS PUBLISHING AND PRINTING
13/01/2020,SE CARE - CP & COURT LAC,HOTELSCOM9206167741323,"1,050.00",INDEPENDENT LIVING PLACEMENTS,TRAVEL AGENCIES AND TOUR OPERATORS
13/01/2020,DEVELOPMENT TEAM,WWW.TXTLOCAL.COM,"1,260.00",SUBSCRIPTIONS,"CONSULTING, MANAGEMENT, AND PUBLIC RELATIONS SVCS"
14/01/2020,RIGHTS & PARTICIPATION TEAM,DMN/PUTTSHACKBANK,262.50,VENUE COSTS (INCLUDING HIRE OF ROOMS),"EATING PLACES, RESTAURANTS"
14/01/2020,ACL CENTRAL EXPENDITURE,INVOICE,352.50,PUBLICITY,"COMP PROGRAMING,DATA PRCSNG,INTGRTD SYS DSGN SRVS"
14/01/2020,MISC EDCAT SUPPORT,QMS INTERNATIONAL LTD,539.40,CONSULTANTS,BUSINESS SERVICES-NOT ELSEWHERE CLASSIFIED
14/01/2020,WAVERLEY CMHRS CARE,TRAVELODGE GB0000,798.36,OTHER COMMUNITY CARE PRIV,TRAVELODGE
14/01/2020,TRANSPORT,WWW.ANSONUK.CO.UK,884.40,OPERATIONAL FIRE EQUIPMENT,PROFESSIONAL SERVICES-NOT ELSEWHERE CLASSIFIED
14/01/2020,SHELL UK LICENSING,WWW.DEVON.GOV.UK,"1,250.00",FEES,"COLLEGES, UNIV, PRO SCHOOLS, JUNIOR COLLEGES"
14/01/2020,STAFF OFFICE,0800 PROMOTE,"1,528.80",STATIONERY,PROFESSIONAL SERVICES-NOT ELSEWHERE CLASSIFIED
14/01/2020,TRANSPORT,R S RECOVERY SER,"1,800.00",PROPERTY,TOWING SERVICES
15/01/2020,DOWNLANDS COUNTRYSIDE PROJECT,DVLA VEHICLE TAX,262.50,VEHICLE RUNNING COSTS,TAX PAYMENTS
15/01/2020,SOLD ESTATES MANAGEMENT,NATIONAL TRUST,273.00,FEES,"ORGANIZATIONS, CHARITABLE AND SOCIAL SERVICES"
15/01/2020,BURBANK COMMUNITY HOME,SAINSBURYS TO YOU 0686,291.90,PURCHASE OF FOOD (RAW MATERIALS),"GROCERY STORES, SUPERMARKETS"
15/01/2020,LOWER MOLE COUNTRYSIDE PROJECT,SCREWFIX DIRECT,349.98,EQUIPMENT,HOME SUPPLY WAREHOUSE STORES
15/01/2020,ORBIS TRAINING PROPERTY,WWW.RRC.CO.UK,931.00,TRAINING EXPENSES EXTERNAL GENERAL,"COLLEGES, UNIV, PRO SCHOOLS, JUNIOR COLLEGES"
15/01/2020,HEAD OF SERVICE,DOUBLETREE,"4,305.00",VENUE COSTS (INCLUDING HIRE OF ROOMS),DOUBLETREE
16/01/2020,CHEYNE WALK COMMUNITY HOME,TESCO-STORES 6647,268.96,PURCHASE OF FOOD (RAW MATERIALS),"GROCERY STORES, SUPERMARKETS"
16/01/2020,TRANSPORT,TOOLSTATION LTD,285.96,EQUIPMENT,HARDWARE STORES
16/01/2020,PE/CDT MAINTENANCE OVERHEADS,G & M TOOLS,306.00,EQUIPMENT,HARDWARE STORES
16/01/2020,VIRTUAL SCHOOL FOR LAC PUPIL PREMIUM,AMZNMKTPLACE,499.98,CURRICULUM EQUIPMENT AND FURNITURE,MISCELLANEOUS AND SPECIALTY RETAIL STORES
16/01/2020,NW NIL RECOURSE TO PUBLIC FUNDS CARE,THE WOKING HOTEL,997.80,OTHER COMMUNITY CARE VOL,"LODGING-HOTELS,MOTELS,RESORTS-NOT CLASSIFIED"
17/01/2020,VIRTUAL SCHOOL FOR LAC PUPIL PREMIUM,AMAZON.CO.UK VU6KH4HE5,253.25,CURRICULUM EQUIPMENT AND FURNITURE,DIRECT MARKETING-OTHER DIRECT MARKETERS/NOT ELSEW.
17/01/2020,TRANSPORT,WINDSCREEN FIXERS LTD,259.20,VEHICLE REPAIRS AND MAINTENANCE,AUTOMOTIVE SERVICE SHOPS
17/01/2020,FINANCIAL STRATEGY & REPORTING TEAM,COMPANY SEARCHES MADE,268.80,SUBSCRIPTIONS,DIRECT MARKETING-CONTINUITY/SUBSCRIPTION MERCHANTS
17/01/2020,WORKPLACE COMMERCIAL TEAM,IMMEDIATE MEDIA CO,269.64,PUBLICITY,"BOOKS,PERIODICALS AND NEWSPAPERS"
17/01/2020,RUTH HOUSE,G J HONOUR FAMILY BUTC,292.96,PURCHASE OF FOOD (RAW MATERIALS),"FREEZER, LOCKER MEAT PROVISIONERS"
17/01/2020,SHELL UK LICENSING,WWW.SHROPSHIRE-C.GOV.,305.00,FEES,"COLLEGES, UNIV, PRO SCHOOLS, JUNIOR COLLEGES"
17/01/2020,NE SECTION 17 CARE,TRAVELODGE GB0000,343.93,INDEPENDENT LIVING PLACEMENTS,TRAVELODGE
17/01/2020,SOLD ESTATES MANAGEMENT,CASTLE VEHICLE LEASING,474.00,TRAINING EXPENSES EXTERNAL GENERAL,"SCHOOLS, BUSINESS AND SECRETARIAL"
17/01/2020,SOLD ESTATES MANAGEMENT,TINMAN STEELS LTD,498.27,EQUIPMENT,"ROOFING AND SIDING, SHEET METAL WORK CONTRACTORS"
17/01/2020,SHELL UK LICENSING,SLOUGH BOROUGH COUNCIL,625.00,FEES,GOVERNMENT SERVICES-NOT ELSEWHERE CLASSIFIED
17/01/2020,SHELL UK LICENSING,WWW.N-SOMERSET.GOV.UK,625.00,FEES,GOVERNMENT SERVICES-NOT ELSEWHERE CLASSIFIED
17/01/2020,HR LEADERSHIP DEVELOPMENT,SOCIETYM,775.95,SUBSISTENCE AND CONFERENCE EXPENSES,"LODGING-HOTELS,MOTELS,RESORTS-NOT CLASSIFIED"
17/01/2020,BIKEABILITY - CYCLE TRAINING,THE BIKEABILITY TRUST,"2,853.96",EQUIPMENT,STATIONERY/OFFICE SUPPLIES/PRINTING & WRITING PAP.
17/01/2020,SURREY FRS CAPITAL EQUIPMENT,ELIO AULETTA SOT LTD N,"4,438.80",CE03 CAPITAL VEHICLES AND PLANT,HARDWARE STORES
20/01/2020,YOUTH OFFER SERVICE,WWW.ARTISANLEATHER.CO.,260.50,EQUIPMENT,"GIFT, CARD, NOVELTY AND SOUVENIR SHOPS"
20/01/2020,BIRCHLANDS,FOWLES C C,270.00,UPKEEP OF GROUNDS,"UTLTS-ELCTRC, GAS, HEATING OIL, SANITARY, WATER"
20/01/2020,RIGHTS & PARTICIPATION TEAM,TESCO STORES 6542,300.00,REFRESHMENT COSTS,"GROCERY STORES, SUPERMARKETS"
20/01/2020,TRAINING COMMUNICATIONS,PAYPAL  CREATIVECOM,354.00,TRAINING USING EXTERNAL PROVIDERS,"CONSULTING, MANAGEMENT, AND PUBLIC RELATIONS SVCS"
20/01/2020,TRAINING COMMUNICATIONS,PAYPAL  CREATIVECOM,354.00,TRAINING USING EXTERNAL PROVIDERS,"CONSULTING, MANAGEMENT, AND PUBLIC RELATIONS SVCS"
20/01/2020,TRAINING COMMUNICATIONS,PAYPAL  CREATIVECOM,354.00,TRAINING EXPENSES EXTERNAL GENERAL,"CONSULTING, MANAGEMENT, AND PUBLIC RELATIONS SVCS"
20/01/2020,TRAINING AND DEVELOPMENT,GOVERNMENT EVENTS,396.78,SUBSISTENCE AND CONFERENCE EXPENSES,"ASSOCIATIONS-CIVIC, SOCIAL, AND FRATERNAL"
20/01/2020,NE EDUCATION PSYCHOLOGISTS,AMAZON.CO.UK HD7EY4HS5,423.36,BOOKS,DIRECT MARKETING-OTHER DIRECT MARKETERS/NOT ELSEW.
20/01/2020,SHELL UK LICENSING,SOUTHEND.GOV.UK,625.00,FEES,GOVERNMENT SERVICES-NOT ELSEWHERE CLASSIFIED
21/01/2020,CORONER SURREY POLICE,WWW.WELLWORKING LTD,259.99,EQUIPMENT,"OFFICE, SCHOOL SUPPLY, AND STATIONERY STORES"
21/01/2020,RUTH HOUSE,WWW.MUSBURYFABRICS.CO.,263.50,"CLOTHING, UNIFORM AND LAUNDRY",MISCELLANEOUS HOUSE FURNISHING SPECIALTY SHOPS
21/01/2020,ACL CENTRAL EXPENDITURE,CARTRIDGEPEOPLE.COM,289.50,COMPUTER CONSUMABLES,STATIONERY/OFFICE SUPPLIES/PRINTING & WRITING PAP.
21/01/2020,SE TARGETTED YOUTH SUPPORT,AMAZON.CO.UK 7L99B8O45,299.00,COMPUTER CONSUMABLES,DIRECT MARKETING-OTHER DIRECT MARKETERS/NOT ELSEW.
21/01/2020,HERITAGE PUBLIC SERVICE,AO RETAIL LIMITED,354.00,EQUIPMENT,HOUSEHOLD APPLIANCE STORES
21/01/2020,ARUNDEL,SHOREFIELD HOLIDAY,360.00,EDUC VISITS/HOLS/CAMPS/TOYS,CAMPGROUNDS AND TRAILER PARKS
21/01/2020,TRAINING AND DEVELOPMENT,GOVERNMENT EVENTS,396.78,SUBSISTENCE AND CONFERENCE EXPENSES,"ASSOCIATIONS-CIVIC, SOCIAL, AND FRATERNAL"
21/01/2020,TRAINING CHILDREN'S,WWW.IPSEA.ORG.UK,450.00,TRAINING EXPENSES EXTERNAL GENERAL,SCHOOLS & EDUCATIONAL SVC-NOT ELSEWHERE CLASSIFIED
21/01/2020,SOLD DAY TO DAY OPERATIONS,ROCK ON,480.00,EQUIPMENT,"BANDS, ORCHESTRAS, & MISC ENTRTNRS-NOT ELSWHR CLAS"
21/01/2020,TRANSPORT,SP SERVICES,495.24,OPERATIONAL FIRE EQUIPMENT,DENTAL/LAB/MED/OPHTHALMIC HOSP EQUIP & SUPPLIES
21/01/2020,TRANSPORT,SOMERSET COMMERCIALS L,641.04,VEHICLE REPAIRS AND MAINTENANCE,"BUILDING MATERIALS, LUMBER STORES"
21/01/2020,HR LEADERSHIP DEVELOPMENT,WWW.THEHUBEVENTS.COM,672.00,TRAINING EXPENSES EXTERNAL GENERAL,"CONSULTING, MANAGEMENT, AND PUBLIC RELATIONS SVCS"
21/01/2020,HR LEADERSHIP DEVELOPMENT,WWW.THEHUBEVENTS.COM,672.00,TRAINING EXPENSES EXTERNAL GENERAL,"CONSULTING, MANAGEMENT, AND PUBLIC RELATIONS SVCS"
21/01/2020,HR LEADERSHIP DEVELOPMENT,WWW.THEHUBEVENTS.COM,672.00,TRAINING EXPENSES EXTERNAL GENERAL,"CONSULTING, MANAGEMENT, AND PUBLIC RELATIONS SVCS"
21/01/2020,SURREY ARTS GENERAL,RAPID RACKING,"1,008.00",EQUIPMENT,"EQUIP, FURNITURE, HOME FURNSHNGS STRS (EXCPT APPL)"
21/01/2020,LOWER MOLE COUNTRYSIDE PROJECT,WWW.DEFIBSHOP.CO.UK,"1,140.00",EQUIPMENT,"SCHOOLS, TRADE AND VOCATIONAL"
21/01/2020,TRANSPORT,HOT PACK INTERNATIONAL,"1,247.00",OPERATIONAL FIRE EQUIPMENT,MISCELLANEOUS GENERAL MERCHANDISE
21/01/2020,LIBERTAS COMMUNITY HOME,SOFA WORKSHOP,"1,480.00",FURNITURE,"EQUIP, FURNITURE, HOME FURNSHNGS STRS (EXCPT APPL)"
22/01/2020,TRANSPORT,CARDIAC SCIENCE HOLDIN,288.00,OPERATIONAL FIRE EQUIPMENT,DENTAL/LAB/MED/OPHTHALMIC HOSP EQUIP & SUPPLIES
22/01/2020,COUNTY HALL,JCM LOCKSMITHS LTD,299.41,EQUIPMENT,HARDWARE STORES
22/01/2020,BURBANK COMMUNITY HOME,SAINSBURYS TO YOU 0686,306.68,PURCHASE OF FOOD (RAW MATERIALS),"GROCERY STORES, SUPERMARKETS"
22/01/2020,TRANSPORT,AMZNMKTPLACE,321.50,EQUIPMENT,MISCELLANEOUS AND SPECIALTY RETAIL STORES
22/01/2020,DOWNLANDS COUNTRYSIDE PROJECT,D & S SKIPS LIMITED,360.00,UPKEEP OF GROUNDS,BUSINESS SERVICES-NOT ELSEWHERE CLASSIFIED
22/01/2020,COMMUNICATIONS,GOOGLE  ADS2060179426,500.00,PUBLICITY,ADVERTISING SERVICES
22/01/2020,TRAINING LEGAL SERVICES,HANDS FREE COMPUTING,573.60,TRAINING EXPENSES EXTERNAL GENERAL,"COMPUTERS, COMPUTER PERIPHERAL EQUIPMENT, SOFTWARE"
22/01/2020,TRANSPORT,HOLYWELL.COM,668.28,OPERATIONAL FIRE EQUIPMENT,COMPUTER SOFTWARE STORES
22/01/2020,RECRUITMENT,ETEACH UK LTD,780.00,STAFF ADVERTISING ,"EMPLOYMENT AGENCIES, TEMPORARY HELP SERVICES"
22/01/2020,NE LOOKED AFTER TEAM,UKBA10367998241,"2,199.00",FEES,GOVERNMENT SERVICES-NOT ELSEWHERE CLASSIFIED
22/01/2020,SURREY ARTS GENERAL,WWW.JOHNLEWIS.COM,"3,190.00",COMPUTER HARDWARE,DEPARTMENT STORES
22/01/2020,SURREY ARTS GENERAL,WWW.JOHNLEWIS.COM,"3,190.00",COMPUTER HARDWARE,DEPARTMENT STORES
23/01/2020,LOWER MOLE COUNTRYSIDE PROJECT,ST JOHN AMBULANCE,270.00,TRAINING EXPENSES EXTERNAL GENERAL,"ORGANIZATIONS, CHARITABLE AND SOCIAL SERVICES"
23/01/2020,PROPERTY BUSINESS & PERFORMANCE TEAM,TABLEAU SOFTWARE,282.94,TRAINING EXPENSES EXTERNAL GENERAL,COMPUTER SOFTWARE STORES
23/01/2020,SE TARGETTED YOUTH SUPPORT,AMAZON.CO.UK 664V94PT5,299.00,COMPUTER CONSUMABLES,DIRECT MARKETING-OTHER DIRECT MARKETERS/NOT ELSEW.
23/01/2020,CHEYNE WALK COMMUNITY HOME,TESCO-STORES 6647,300.12,PURCHASE OF FOOD (RAW MATERIALS),"GROCERY STORES, SUPERMARKETS"
23/01/2020,SE TARGETTED YOUTH SUPPORT,WARNER BROS. STUDIOS L,378.00,EDUC VISITS/HOLS/CAMPS/TOYS,TOURIST ATTRACTIONS AND EXHIBITS
23/01/2020,SOLD DAY TO DAY OPERATIONS,ROCK ON,400.00,EQUIPMENT,"BANDS, ORCHESTRAS, & MISC ENTRTNRS-NOT ELSWHR CLAS"
23/01/2020,DOWNLANDS COUNTRYSIDE PROJECT,AMZN MKTP US HO98R2UR3,453.79,EQUIPMENT,MISCELLANEOUS AND SPECIALTY RETAIL STORES
23/01/2020,CHALKMEAD,HOMEFORDS,522.00,DAY TO DAY MAINTENANCE,"CONSULTING, MANAGEMENT, AND PUBLIC RELATIONS SVCS"
23/01/2020,SHELL UK LICENSING,CORNWALL COUNCIL,678.00,FEES,GOVERNMENT SERVICES-NOT ELSEWHERE CLASSIFIED
23/01/2020,LOWER MOLE COUNTRYSIDE PROJECT,WWW.MOLEVALLEY.GOV.UK,"2,028.00",FEES,GOVERNMENT SERVICES-NOT ELSEWHERE CLASSIFIED
24/01/2020,TRANSPORT,PAYPAL  HUGHESTVAUD EB,299.00,EQUIPMENT,CAMERA AND PHOTOGRAPHIC SUPPLY STORES
24/01/2020,SHELL UK LICENSING,GUILDFORD BOROUGH CNCL,678.00,FEES,GOVERNMENT SERVICES-NOT ELSEWHERE CLASSIFIED
24/01/2020,SE CARE - CP & COURT LAC,HOTELSCOM9206290450226,"1,470.00",INDEPENDENT LIVING PLACEMENTS,TRAVEL AGENCIES AND TOUR OPERATORS
24/01/2020,SURREY ARTS GENERAL,WEX PHOTOGRAPHIC,"2,260.00",EQUIPMENT,CAMERA AND PHOTOGRAPHIC SUPPLY STORES
26/01/2020,STRATEGIC TREE MAINTENANCE - NPR,AMZNMKTPLACE,790.51,EQUIPMENT,MISCELLANEOUS AND SPECIALTY RETAIL STORES
27/01/2020,TRANSPORT,AQUACHECK ENGINEERING,301.54,OPERATIONAL FIRE EQUIPMENT,INDUSTRIAL SUPPLIES NOT ELSEWHERE CLASSIFIED
27/01/2020,TRAINING AND DEVELOPMENT,SUSSEX YACHT CLUB BAR,370.00,REFRESHMENT COSTS,"BAR,LOUNGE,DISCO,NIGHTCLUB,TAVERN-ALCOHOLIC DRINKS"
27/01/2020,BUSINESS OPERATIONS TRAINING,GOVERNMENT EVENTS,396.78,FEES,"ASSOCIATIONS-CIVIC, SOCIAL, AND FRATERNAL"
27/01/2020,HEAD OF SERVICE,DOUBLETREE,455.00,VENUE COSTS (INCLUDING HIRE OF ROOMS),DOUBLETREE
27/01/2020,TRANSPORT,WINDSCREEN FIXERS LTD,530.00,VEHICLE REPAIRS AND MAINTENANCE,AUTOMOTIVE SERVICE SHOPS
27/01/2020,SHELL UK LICENSING,PAYMENTS.RHONDDA-C,625.00,FEES,GOVERNMENT SERVICES-NOT ELSEWHERE CLASSIFIED
27/01/2020,BURBANK COMMUNITY HOME,CENTRAL AUTO REPAIR SE,"1,006.84",VEHICLE REPAIRS AND MAINTENANCE,AUTOMOTIVE SERVICE SHOPS
28/01/2020,STRATEGIC DIRECTOR,CROWNE PLAZA BELFAST,291.50,SUBSISTENCE AND CONFERENCE EXPENSES,"LODGING-HOTELS,MOTELS,RESORTS-NOT CLASSIFIED"
28/01/2020,NIHR CLINICAL LECTURESHIP,DATACAMP INC.,316.53,TRAINING EXPENSES EXTERNAL GENERAL,OTHER SERVICES (NOT ELSEWHERE CLASSIFIED)
28/01/2020,HERITAGE ENTERPRISE (SCAU),HISTORIC ENGLAND,348.00,FEES,TOURIST ATTRACTIONS AND EXHIBITS
28/01/2020,PE/CDT MAINTENANCE OVERHEADS,UNIVERSAL SERVICES (SP,386.40,ITEMS PURCHASED FOR RE-SALE,"ATHLTIC FIELDS,COMMRCL SPRT,SPRT CLBS,SPRT PROMOTR"
28/01/2020,COUNTYWIDE MANAGED PRINT SERVICE,CARTRIDGE SAVE,393.82,PRINTING,STATIONERY/OFFICE SUPPLIES/PRINTING & WRITING PAP.
28/01/2020,WAVERLEY CMHRS CARE,TRAVELODGE GB0000,920.36,OTHER COMMUNITY CARE PRIV,TRAVELODGE
28/01/2020,LIBERTAS COMMUNITY HOME,BRITISH A 125HOL41294770,"4,595.50",EDUC VISITS/HOLS/CAMPS/TOYS,BRITISH A
29/01/2020,CHEYNE WALK COMMUNITY HOME,TESCO-STORES 6647,266.77,PURCHASE OF FOOD (RAW MATERIALS),"GROCERY STORES, SUPERMARKETS"
29/01/2020,CHALKMEAD,PAYPAL  MAGMAC LTD,275.45,DAY TO DAY MAINTENANCE,VARIETY STORES
29/01/2020,BURBANK COMMUNITY HOME,SAINSBURYS TO YOU 0686,296.80,PURCHASE OF FOOD (RAW MATERIALS),"GROCERY STORES, SUPERMARKETS"
29/01/2020,CHALKMEAD,PAYPAL  MAGMAC LTD,377.55,DAY TO DAY MAINTENANCE,VARIETY STORES
29/01/2020,LOWER MOLE COUNTRYSIDE PROJECT,SPLIT -LROVER (89.75%),394.12,VEHICLE RUNNING COSTS,AUTOMOTIVE TIRE STORES
29/01/2020,CHEYNE WALK COMMUNITY HOME,AMZNMKTPLACE,404.99,EQUIPMENT,MISCELLANEOUS AND SPECIALTY RETAIL STORES
29/01/2020,TS SERVICE MANAGEMENT,MAILBOXES ETC,480.00,SUBSCRIPTIONS,"OFFICE, SCHOOL SUPPLY, AND STATIONERY STORES"
29/01/2020,NW NIL RECOURSE TO PUBLIC FUNDS CARE,THE WOKING HOTEL,864.76,INDEPENDENT LIVING PLACEMENTS,"LODGING-HOTELS,MOTELS,RESORTS-NOT CLASSIFIED"
29/01/2020,SPLASH PROJECT,CURRYS S/S,"3,869.95",CURRICULUM EQUIPMENT AND FURNITURE,HOUSEHOLD APPLIANCE STORES
29/01/2020,SURREY FRS CAPITAL EQUIPMENT,JMS JANITORIAL SUPPLIE,"4,255.92",CE03 CAPITAL VEHICLES AND PLANT,"CLEANING AND MAINTENANCE, JANITORIAL SERVICES"
30/01/2020,SOLD MANAGEMENT AND OVERHEADS,PAYPAL  COUNCILFORL,250.00,SUBSCRIPTIONS,"ORGANIZATIONS, CHARITABLE AND SOCIAL SERVICES"
30/01/2020,SURREY PENSIONS,GEN REGISTER OFFICE,322.00,PURCHASE CARD TRANSACTION LOG DEFAULT,GOVERNMENT SERVICES-NOT ELSEWHERE CLASSIFIED
30/01/2020,TRANSPORT,AMZNMKTPLACE AMAZON.CO,412.46,FURNITURE,MISCELLANEOUS AND SPECIALTY RETAIL STORES
30/01/2020,TRANSPORT,HOLMATRO UK LTD,474.00,VEHICLE REPAIRS AND MAINTENANCE,INDUSTRIAL SUPPLIES NOT ELSEWHERE CLASSIFIED
30/01/2020,SHELL UK LICENSING,CHESHIRE EAST CRIM CNP,625.00,FEES,GOVERNMENT SERVICES-NOT ELSEWHERE CLASSIFIED
30/01/2020,ROW VOLUNTEERS EAST                     ,WWW.DAYGROUP.CO.UK,706.80,EQUIPMENT,INDUSTRIAL SUPPLIES NOT ELSEWHERE CLASSIFIED
31/01/2020,COMMUNICATIONS,FACEBK  R8TLWRJAK2,299.99,PUBLICITY,ADVERTISING SERVICES
31/01/2020,TARGETED INTERVENTION,ROYAL YACHTING ASSOCIA,336.00,EDUC VISITS/HOLS/CAMPS/TOYS,BUSINESS SERVICES-NOT ELSEWHERE CLASSIFIED
31/01/2020,CHALKMEAD,PAYPAL  ABSOLUTE,338.04,DAY TO DAY MAINTENANCE,MISCELLANEOUS HOUSE FURNISHING SPECIALTY SHOPS
31/01/2020,BUSINESS UNIT,SURVEYMONKEY,384.00,TRAINING EXPENSES EXTERNAL GENERAL,"COMP PROGRAMING,DATA PRCSNG,INTGRTD SYS DSGN SRVS"
31/01/2020,DEPUTYSHIP TEAM,BRITISH GAS SERVIC,439.00,3RD PARTY PAYMENTS PRIVATE INDIV,HOUSEHOLD APPLIANCE STORES
31/01/2020,ABBEYWOOD,AMZNMKTPLACE,443.62,E25 CATERING EQUIPMENT,MISCELLANEOUS AND SPECIALTY RETAIL STORES
31/01/2020,ASSET PLANNING - OPERATIONS,WWW.MUDFORDS.CO.UK,480.00,EQUIPMENT,INDUSTRIAL SUPPLIES NOT ELSEWHERE CLASSIFIED
31/01/2020,COMMUNICATIONS,GOOGLE  ADS2060179426,500.00,PUBLICITY,ADVERTISING SERVICES
01/02/2020,KARIBU COMMUNITY HOME,TESCO STORE 2812,259.48,PURCHASE OF FOOD (RAW MATERIALS),"GROCERY STORES, SUPERMARKETS"
03/02/2020,MEADOWSIDE,ARGOS LTD,279.99,DAY TO DAY MAINTENANCE,DISCOUNT STORES
03/02/2020,APPLEWOOD,ARJO UK LIMITED,289.20,EQUIPMENT,DENTAL/LAB/MED/OPHTHALMIC HOSP EQUIP & SUPPLIES
03/02/2020,PESS MEMBERSHIP,DENBIES OFFICE,300.00,REFRESHMENT COSTS,TOURIST ATTRACTIONS AND EXHIBITS
03/02/2020,SHELL UK LICENSING,LICHFIELD DC,452.00,FEES,GOVERNMENT SERVICES-NOT ELSEWHERE CLASSIFIED
03/02/2020,SHELL UK LICENSING,DACORUM INTERNET,678.00,FEES,GOVERNMENT SERVICES-NOT ELSEWHERE CLASSIFIED
03/02/2020,TRANSPORT,PEUGEOT GATWICK,947.50,VEHICLE REPAIRS AND MAINTENANCE,"AUTO & TRUCK DLRS-SALES,SVC, REPRS,PRTS, & LEASING"
04/02/2020,RIGHTS & PARTICIPATION TEAM,HIGHSTREETVOUCHERS,256.50,TRAINING USING EXTERNAL PROVIDERS,"ASSOCIATIONS-CIVIC, SOCIAL, AND FRATERNAL"
04/02/2020,IMT MANAGEMENT TEAM,HABLE,300.00,TRAINING USING EXTERNAL PROVIDERS,"CONSULTING, MANAGEMENT, AND PUBLIC RELATIONS SVCS"
04/02/2020,BIKEABILITY - CYCLE TRAINING,THE BIKEABILITY TRUST,303.96,EQUIPMENT,STATIONERY/OFFICE SUPPLIES/PRINTING & WRITING PAP.
04/02/2020,WEST HOUSE COMPLEX,SOLOMON BLINDS,352.80,EQUIPMENT,"DRAPERY, UPOLSTERY, AND WINDOW COVERINGS STORES"
04/02/2020,INSTRUMENT HIRE SHOP,WWW.ALDAUTOMOTIVE.CO.U,364.58,HIRE OF VEHICLES,BUSINESS SERVICES-NOT ELSEWHERE CLASSIFIED
04/02/2020,HR - COUNTYWIDE TRAINING,WWW.ICE.ORG.UK,366.40,SUBSCRIPTIONS,"ORGANIZATIONS, MEMBERSHIP-NOT ELSEWHERE CLASSIFIED"
04/02/2020,TRANSPORT,PAYPAL  ARGOS EBAY EBA,399.00,EQUIPMENT,DEPARTMENT STORES
04/02/2020,SURREY ARTS GENERAL,WEX PHOTOGRAPHIC,466.94,EQUIPMENT,CAMERA AND PHOTOGRAPHIC SUPPLY STORES
04/02/2020,TRAINING SURREY HIGHWAYS,APPIAN TRADING LIMITED,708.00,TRAINING EXPENSES EXTERNAL GENERAL,PROFESSIONAL SERVICES-NOT ELSEWHERE CLASSIFIED
04/02/2020,KESWICK,AMZNMKTPLACE,725.47,EQUIPMENT,MISCELLANEOUS AND SPECIALTY RETAIL STORES
05/02/2020,BURBANK COMMUNITY HOME,SAINSBURYS TO YOU 0686,280.46,PURCHASE OF FOOD (RAW MATERIALS),"GROCERY STORES, SUPERMARKETS"
05/02/2020,CHALKMEAD,PAYPAL  MAGMAC LTD,321.81,DAY TO DAY MAINTENANCE,VARIETY STORES
05/02/2020,SE LAC AND LEAVING CARE,ARGOS LTD,349.98,EQUIPMENT,DISCOUNT STORES
05/02/2020,CHALKMEAD,PAYPAL  MAGMAC LTD,377.69,DAY TO DAY MAINTENANCE,VARIETY STORES
05/02/2020,SEN ADAPTATIONS IN SCHOOLS,WWW.MANGAR.CO.UK,436.80,EQUIPMENT,"HEALTH PRACTITIONERS, MEDICAL SRVCS-NOT ELSEWHERE"
05/02/2020,SEN ADAPTATIONS IN SCHOOLS,WWW.MANGAR.CO.UK,436.80,EQUIPMENT,"HEALTH PRACTITIONERS, MEDICAL SRVCS-NOT ELSEWHERE"
05/02/2020,SE LAC AND LEAVING CARE,ARGOS LTD,451.94,EQUIPMENT,DISCOUNT STORES
05/02/2020,ORBIS TRAINING PROPERTY,BSRIA LIMITED,462.00,TRAINING EXPENSES EXTERNAL GENERAL,INDUSTRIAL SUPPLIES NOT ELSEWHERE CLASSIFIED
05/02/2020,TRANSPORT,DIAMOND GARAGE EQUIPME,648.00,VEHICLE REPAIRS AND MAINTENANCE,AUTOMOTIVE SERVICE SHOPS
05/02/2020,COMMUNICATIONS TEAM,DANDAD.ORG,765.00,SUBSCRIPTIONS,"ORGANIZATIONS, MEMBERSHIP-NOT ELSEWHERE CLASSIFIED"
05/02/2020,SURREY FRS CAPITAL EQUIPMENT,SORTIMO INT' LTD,771.00,CE03 CAPITAL VEHICLES AND PLANT,"AUTOMOTIVE PARTS, ACCESSORIES STORES"
05/02/2020,ORBIS TRAINING PROPERTY,ILX GROUP PLC,"1,974.00",TRAINING EXPENSES EXTERNAL GENERAL,BUSINESS SERVICES-NOT ELSEWHERE CLASSIFIED
06/02/2020,SURREY ARTS GENERAL,RAPID RACKING,252.00,FURNITURE,"EQUIP, FURNITURE, HOME FURNSHNGS STRS (EXCPT APPL)"
06/02/2020,TRANSPORT,PAYPAL  HUGHESTVAUD EB,257.14,EQUIPMENT,CAMERA AND PHOTOGRAPHIC SUPPLY STORES
06/02/2020,BURBANK COMMUNITY HOME,ARGOS LTD,265.74,EQUIPMENT,DISCOUNT STORES
06/02/2020,RIGHTS & PARTICIPATION TEAM,WESTMINSTER CITY COUNC,286.00,VENUE COSTS (INCLUDING HIRE OF ROOMS),GOVERNMENT SERVICES-NOT ELSEWHERE CLASSIFIED
06/02/2020,RIGHTS & PARTICIPATION TEAM,AMAZON.CO.UK J32S119V5,326.99,EQUIPMENT,DIRECT MARKETING-OTHER DIRECT MARKETERS/NOT ELSEW.
06/02/2020,PSSS ICT SUPPORT,AMZNMKTPLACE,350.60,EQUIPMENT,MISCELLANEOUS AND SPECIALTY RETAIL STORES
06/02/2020,ACL CENTRAL EXPENDITURE,W P NOTCUTT LTD,455.52,EQUIPMENT,"BUILDING MATERIALS, LUMBER STORES"
06/02/2020,COMMUNICATIONS TEAM,DANDAD.ORG,513.00,TRAINING USING EXTERNAL PROVIDERS,"ORGANIZATIONS, MEMBERSHIP-NOT ELSEWHERE CLASSIFIED"
06/02/2020,TRAINING AND DEVELOPMENT,SPLIT - (96.43%),945.00,TRAINING EXPENSES EXTERNAL GENERAL,"ORGANIZATIONS, MEMBERSHIP-NOT ELSEWHERE CLASSIFIED"
06/02/2020,SHELL UK LICENSING,HAMPSHIRE COUNTY COUNC,"1,875.00",FEES,GOVERNMENT SERVICES-NOT ELSEWHERE CLASSIFIED
07/02/2020,ORBIS REPAIRS AND MAINT,SCREWFIX DIRECT,308.86,PURCHASE OF BUILDING MATERIALS,HOME SUPPLY WAREHOUSE STORES
07/02/2020,2 ST JAMES AVENUE FARNHAM,WWW.JOHNLEWIS.COM,398.00,FURNITURE,DEPARTMENT STORES
07/02/2020,MALLOW CRESCENT DMHS 25-30,WWW.JOHNLEWIS.COM,419.00,EQUIPMENT,DEPARTMENT STORES
07/02/2020,SPEECH & LANGUAGE THERAPY,THINKING BOOKS,431.60,EQUIPMENT,BOOK STORES
07/02/2020,SW CARE - CP & COURT LAC,SPLIT - APPLICATION FEE RE F - 68982 (90.1%),455.00,LEGAL EXPENSES,FINES
07/02/2020,SOLD ESTATES MANAGEMENT,CASTLE VEHICLE LEASING,474.00,EQUIPMENT,"SCHOOLS, BUSINESS AND SECRETARIAL"
07/02/2020,RECRUITMENT,WWW.MARKALLENGROUP.COM,480.00,STAFF ADVERTISING ,SCHOOLS & EDUCATIONAL SVC-NOT ELSEWHERE CLASSIFIED
07/02/2020,FIRE & RESCUE COMMUNITY SAFETY,AGX HOLDINGS LTD,"1,387.20",COMPUTER HARDWARE,COMPUTER MAIN./REPAIR/SERVICES NOT ELSEWHERE CLASS
07/02/2020,BIKEABILITY - CYCLE TRAINING,THE BIKEABILITY TRUST,"3,003.96",EQUIPMENT,STATIONERY/OFFICE SUPPLIES/PRINTING & WRITING PAP.
09/02/2020,KESWICK,AMZNMKTPLACE,263.32,EQUIPMENT,MISCELLANEOUS AND SPECIALTY RETAIL STORES
09/02/2020,SPEECH & LANGUAGE THERAPY,AMZNMKTPLACE AMAZON.CO,298.31,EQUIPMENT,MISCELLANEOUS AND SPECIALTY RETAIL STORES
09/02/2020,STRATEGIC TREE MAINTENANCE - PR,AMZNMKTPLACE,877.98,EQUIPMENT,MISCELLANEOUS AND SPECIALTY RETAIL STORES
10/02/2020,TS SERVICE MANAGEMENT,TRADING STANDARDS INST,500.00,EQUIPMENT,DIRECT MARKETING-COMBINATION CATALOG/RETAIL MERCH.
10/02/2020,VIRTUAL SCHOOL FOR LAC PUPIL PREMIUM,AMZNMKTPLACE,530.46,CURRIC BOOKS,MISCELLANEOUS AND SPECIALTY RETAIL STORES
10/02/2020,PORTAGE SERVICE (NE),AMZNMKTPLACE,577.36,EQUIPMENT,MISCELLANEOUS AND SPECIALTY RETAIL STORES
10/02/2020,WAVERLEY CMHRS CARE,TRAVELODGE GB0000,925.50,OTHER COMMUNITY CARE PRIV,TRAVELODGE
11/02/2020,LOCAL DELIVERY GROUP,WWW.MEONUK.COM,364.94,EQUIPMENT,BUSINESS SERVICES-NOT ELSEWHERE CLASSIFIED
11/02/2020,SE SECTION 17 CARE,TRAVELODGE GB0000,370.18,INDEPENDENT LIVING PLACEMENTS,TRAVELODGE
11/02/2020,PSS COUNTYWIDE,WWW.NADP-UK.ORG,375.00,TRAINING EXPENSES EXTERNAL GENERAL,SCHOOLS & EDUCATIONAL SVC-NOT ELSEWHERE CLASSIFIED
11/02/2020,SHELL UK LICENSING,WANDSWORTH COUNCIL,452.00,FEES,GOVERNMENT SERVICES-NOT ELSEWHERE CLASSIFIED
11/02/2020,DOWNLANDS COUNTRYSIDE PROJECT,VAN ARNHEM NURSERY,498.00,UPKEEP OF GROUNDS,LAWN AND GARDEN SUPPLY STORES
11/02/2020,SERVICE DELIVERY RESOURCES,SCREWFIX DIRECT,755.58,DAY TO DAY MAINTENANCE,HOME SUPPLY WAREHOUSE STORES
11/02/2020,WEB OPERATIONS TEAM,OPTIMAL WORKSHOP,"1,591.47",SUBSCRIPTIONS,COMPUTER SOFTWARE STORES
11/02/2020,FORMER BROCKHURST,UK POWER NETWORKS,"1,610.40",ELECTRICITY,"UTLTS-ELCTRC, GAS, HEATING OIL, SANITARY, WATER"
11/02/2020,NW LOOKED AFTER TEAM,UKBA10401222490,"3,199.00",FEES,GOVERNMENT SERVICES-NOT ELSEWHERE CLASSIFIED
11/02/2020,NW FAMILY SAFEGUARDING,UKBA10401236128,"3,199.00",FEES,GOVERNMENT SERVICES-NOT ELSEWHERE CLASSIFIED
11/02/2020,NW FAMILY SAFEGUARDING,UKBA10401260185,"3,199.00",FEES,GOVERNMENT SERVICES-NOT ELSEWHERE CLASSIFIED
11/02/2020,NW FAMILY SAFEGUARDING,UKBA10401280002,"3,199.00",FEES,GOVERNMENT SERVICES-NOT ELSEWHERE CLASSIFIED
12/02/2020,INSTRUMENT HIRE SHOP,AMZNMKTPLACE,255.02,EQUIPMENT,MISCELLANEOUS AND SPECIALTY RETAIL STORES
12/02/2020,CHEYNE WALK COMMUNITY HOME,TESCO-STORES 6647,257.60,PURCHASE OF FOOD (RAW MATERIALS),"GROCERY STORES, SUPERMARKETS"
12/02/2020,LOWER MOLE COUNTRYSIDE PROJECT,DVLA VEHICLE TAX,262.50,VEHICLE RUNNING COSTS,TAX PAYMENTS
12/02/2020,BURBANK COMMUNITY HOME,SAINSBURYS TO YOU 0686,309.27,PURCHASE OF FOOD (RAW MATERIALS),"GROCERY STORES, SUPERMARKETS"
12/02/2020,TRANSPORT,PAYPAL  AO RETAIL EBAY,331.55,EQUIPMENT,ELECTRONIC SALES
12/02/2020,KARIBU COMMUNITY HOME,1ST PLACE,432.00,EQUIPMENT,"UTLTS-ELCTRC, GAS, HEATING OIL, SANITARY, WATER"
12/02/2020,ISPSB - ADAPTATIONS & IMPROVEMENTS,WWW.TTS-GROUPS.CO.UK,433.36,EDUC VISITS/HOLS/CAMPS/TOYS,"OFFICE, SCHOOL SUPPLY, AND STATIONERY STORES"
12/02/2020,FOUNDATION STAGE WORK,EB  MAKING IT REAL ONE,477.00,OTHER COMMUNITY CARE VOL,BUSINESS SERVICES-NOT ELSEWHERE CLASSIFIED
12/02/2020,COMMUNICATIONS,FACEBK 8UZ5MR22S2,500.00,PUBLICITY,ADVERTISING SERVICES
12/02/2020,ORBIS TRAINING PROPERTY,RICS,"1,788.00",TRAINING EXPENSES EXTERNAL GENERAL,"ORGANIZATIONS, MEMBERSHIP-NOT ELSEWHERE CLASSIFIED"
13/02/2020,TRANSPORT,DAVIS INDUSTRIAL,288.00,VEHICLE REPAIRS AND MAINTENANCE,"DURABLE GOODS, NOT ELSEWHERE CLASSIFIED"
13/02/2020,ORCHARD COURT,PUREEFOODMOLDS,297.03,EQUIPMENT,"MISC FOOD STORE-CONVENIENCE,MRKT,SPLTY,VENDNG MACS"
13/02/2020,FOUNDATION STAGE WORK,EB  MAKING IT REAL ONE,318.00,OTHER COMMUNITY CARE VOL,BUSINESS SERVICES-NOT ELSEWHERE CLASSIFIED
13/02/2020,LOWER MOLE COUNTRYSIDE PROJECT,ST JOHN AMBULANCE,318.00,TRAINING EXPENSES EXTERNAL GENERAL,"ORGANIZATIONS, CHARITABLE AND SOCIAL SERVICES"
13/02/2020,DEVELOPMENT TEAM,MSFT   E0100A62E6,359.92,SUBSCRIPTIONS,"COMPUTERS, COMPUTER PERIPHERAL EQUIPMENT, SOFTWARE"
13/02/2020,LIBERTAS COMMUNITY HOME,WWW.THERANGE.CO.UK,378.33,FURNITURE,"EQUIP, FURNITURE, HOME FURNSHNGS STRS (EXCPT APPL)"
13/02/2020,DOWNLANDS COUNTRYSIDE PROJECT,SCREWFIX DIRECT,420.95,EQUIPMENT,"BUILDING MATERIALS, LUMBER STORES"
13/02/2020,YOUTH OFFER SERVICE,TRAVIS PERKINS,499.20,EQUIPMENT,"BUILDING MATERIALS, LUMBER STORES"
13/02/2020,DOWNLANDS COUNTRYSIDE PROJECT,FR JONES AND SON LTD,500.00,EQUIPMENT,LAWN AND GARDEN SUPPLY STORES
13/02/2020,ORBIS TRAINING PROPERTY,WWW.RRC.CO.UK,594.80,TRAINING EXPENSES EXTERNAL GENERAL,"COLLEGES, UNIV, PRO SCHOOLS, JUNIOR COLLEGES"
13/02/2020,ORBIS TRAINING PROPERTY,ST JOHN AMBULANCE,636.00,TRAINING EXPENSES EXTERNAL GENERAL,"ORGANIZATIONS, CHARITABLE AND SOCIAL SERVICES"
13/02/2020,TRANSPORT,PREMIER VANGUARD L,816.48,OPERATIONAL FIRE EQUIPMENT,"OFFICE, SCHOOL SUPPLY, AND STATIONERY STORES"
13/02/2020,NW NIL RECOURSE TO PUBLIC FUNDS CARE,THE WOKING HOTEL,931.28,INDEPENDENT LIVING PLACEMENTS,"LODGING-HOTELS,MOTELS,RESORTS-NOT CLASSIFIED"
13/02/2020,DEVELOPMENT TEAM,MSFT   E0100A5O14,954.86,SUBSCRIPTIONS,"COMPUTERS, COMPUTER PERIPHERAL EQUIPMENT, SOFTWARE"
13/02/2020,RIGHTS & PARTICIPATION TEAM,GOVERNMENT EVENTS,"1,435.20",TRAINING USING EXTERNAL PROVIDERS,"ASSOCIATIONS-CIVIC, SOCIAL, AND FRATERNAL"
13/02/2020,CHALKMEAD,ACE SECTIONAL BUILDING,"1,509.00",EQUIPMENT,CONSTRUCTION MATERIALS NOT ELSEWHERE CLASSIFIED
14/02/2020,APPLEWOOD,ASDA GROCERIES ONLINE,291.57,PURCHASE OF FOOD (RAW MATERIALS),"GROCERY STORES, SUPERMARKETS"
14/02/2020,WOODLANDS COMMUNITY HOME,CURRYS ONLINE,379.00,EQUIPMENT,ELECTRONIC SALES
14/02/2020,ACCOMMODATION CLEANING AND REFURBISHMENT,RICHARD HAWORTH LTD,430.92,"CLOTHING, UNIFORM AND LAUNDRY",MISCELLANEOUS HOUSE FURNISHING SPECIALTY SHOPS
14/02/2020,EQUIPMENT SCC BUDGET,FIRSTCHOICE CATERING S,519.00,EQUIPMENT,INDUSTRIAL SUPPLIES NOT ELSEWHERE CLASSIFIED
14/02/2020,COUNTY HALL,WWW.PATTERSONS.CO.UK,709.08,CLEANING AND DOMESTIC SUPPLIES,HARDWARE STORES
15/02/2020,VIRTUAL SCHOOL FOR LAC PUPIL PREMIUM,CHESSINGTON ADVENTURES,622.50,EDUC VISITS/HOLS/CAMPS/TOYS,"THEATRICAL PRODUCERS(EXCL MOTION PIX),TICKET AGNCY"
17/02/2020,TECHNICAL DELIVERY,AMZNMKTPLACE,274.00,COMPUTER HARDWARE,MISCELLANEOUS AND SPECIALTY RETAIL STORES
17/02/2020,SE CARE - CP & COURT LAC,TRAVELODGE GB0000,"2,044.81",INDEPENDENT LIVING PLACEMENTS,TRAVELODGE
18/02/2020,SE TARGETTED YOUTH SUPPORT,AMZNMKTPLACE AMAZON.CO,285.87,EQUIPMENT,MISCELLANEOUS AND SPECIALTY RETAIL STORES
18/02/2020,SE TARGETTED YOUTH SUPPORT,AMZNMKTPLACE AMAZON.CO,285.87,EQUIPMENT,MISCELLANEOUS AND SPECIALTY RETAIL STORES
18/02/2020,COMMUNICATIONS,CROSS COUNTRY TRAINS,294.00,TRAINING EXPENSES EXTERNAL GENERAL,PASSENGER RAILWAYS
18/02/2020,BURBANK COMMUNITY HOME,SAINSBURYS TO YOU 0686,311.23,PURCHASE OF FOOD (RAW MATERIALS),"GROCERY STORES, SUPERMARKETS"
18/02/2020,ASSET PLANNING - OPERATIONS,BOCONLINE.CO.UK,321.54,EQUIPMENT,HOUSEHOLD APPLIANCE STORES
18/02/2020,ORBIS TRAINING PROPERTY,ACUITY TRAINING LTD,"1,216.51",TRAINING EXPENSES EXTERNAL GENERAL,"SCHOOLS, TRADE AND VOCATIONAL"
19/02/2020,SURREY ARTS GENERAL,RAPID RACKING,252.00,FURNITURE,"EQUIP, FURNITURE, HOME FURNSHNGS STRS (EXCPT APPL)"
19/02/2020,CHEYNE WALK COMMUNITY HOME,TESCO-STORES 6647,255.65,PURCHASE OF FOOD (RAW MATERIALS),"GROCERY STORES, SUPERMARKETS"
19/02/2020,SE SECTION 17 CARE,TRAVELODGE GB0000,355.91,INDEPENDENT LIVING PLACEMENTS,TRAVELODGE
19/02/2020,CSF STRATEGIC RISK MANAGEMENT,CMIT ELEARNING,455.00,OTHER COMMUNITY CARE VOL,"COMP PROGRAMING,DATA PRCSNG,INTGRTD SYS DSGN SRVS"
19/02/2020,RECRUITMENT,WWW.MARKALLENGROUP.COM,480.00,STAFF ADVERTISING ,SCHOOLS & EDUCATIONAL SVC-NOT ELSEWHERE CLASSIFIED
19/02/2020,SE CARE - CP & COURT LAC,FLEXISTAY LIMITED,560.00,INDEPENDENT LIVING PLACEMENTS,"LODGING-HOTELS,MOTELS,RESORTS-NOT CLASSIFIED"
19/02/2020,SE TARGETTED YOUTH SUPPORT,WWW.DRUG-BOX.CO.UK,741.60,CURRICULUM CONSUMABLES,PROFESSIONAL SERVICES-NOT ELSEWHERE CLASSIFIED
19/02/2020,TRANSPORT,TOYE KENNING AND SPENC,"1,779.00","CLOTHING, UNIFORM AND LAUNDRY",MEN'S/WOMEN'S/CHILDREN'S UNIFORMS/COMMERCIAL CLOTH
20/02/2020,STRATEGIC LEADERSHIP (CEO & ACEO),SOLACE GROUP,350.00,SUBSCRIPTIONS,"ORGANIZATIONS, MEMBERSHIP-NOT ELSEWHERE CLASSIFIED"
20/02/2020,YOUTH OFFER SERVICE,TRAVIS PERKINS,350.16,EQUIPMENT,"BUILDING MATERIALS, LUMBER STORES"
20/02/2020,HR LEADERSHIP DEVELOPMENT,AURORA VENTURES,560.38,CURRICULUM CONSUMABLES,"CONSULTING, MANAGEMENT, AND PUBLIC RELATIONS SVCS"
20/02/2020,LOWER MOLE COUNTRYSIDE PROJECT,GROUNDSMAN TOOLS AND S,580.68,EQUIPMENT,HARDWARE STORES
20/02/2020,PE/CDT MAINTENANCE OVERHEADS,SCREWFIX DIRECT,613.07,EQUIPMENT,HOME SUPPLY WAREHOUSE STORES
20/02/2020,SHELL UK LICENSING,HERTFORDSHRE COUNTY,625.00,FEES,GOVERNMENT SERVICES-NOT ELSEWHERE CLASSIFIED
20/02/2020,SHELL UK LICENSING,CHESHIRE EAST CRIM CNP,625.00,FEES,GOVERNMENT SERVICES-NOT ELSEWHERE CLASSIFIED
20/02/2020,ISPSB - ADAPTATIONS & IMPROVEMENTS,NRS HEALTHCARE,824.04,EQUIPMENT,"HEARING AIDS-SALES, SERVICE, SUPPLY STORES"
20/02/2020,BUSINESS OPERATIONS TRAINING,WWW.LOCAL.GOV.UK,"1,320.00",FEES,BUSINESS SERVICES-NOT ELSEWHERE CLASSIFIED
21/02/2020,ORBIS HEAD OF PROCUREMENT,F8N7T6R4ZQ9,478.80,SUBSISTENCE AND CONFERENCE EXPENSES,BUSINESS SERVICES-NOT ELSEWHERE CLASSIFIED
21/02/2020,ORBIS TRAINING PROPERTY,WWW.WESTMINSTER-BRIEFI,588.00,TRAINING EXPENSES EXTERNAL GENERAL,"SCHOOLS, BUSINESS AND SECRETARIAL"
21/02/2020,EPSOM & EWELL LOCAL CARE OP,CARPETRIGHT PLC,830.00,EQUIPMENT - INDEPENDENT SECTOR,FLOOR COVERING STORES
21/02/2020,SECTOR MANAGER,WWW.REXLONDONTRADE.COM,"1,552.68",ITEMS PURCHASED FOR RE-SALE,"GIFT, CARD, NOVELTY AND SOUVENIR SHOPS"
23/02/2020,KESWICK,AMZNMKTPLACE AMAZON.CO,828.99,EQUIPMENT,MISCELLANEOUS AND SPECIALTY RETAIL STORES
24/02/2020,RIGHTS & PARTICIPATION TEAM,TROPHYSTORE.CO.UK LIMI,383.50,EDUC VISITS/HOLS/CAMPS/TOYS,"CONTRACTORS,SPECIAL TRADE-NOT ELSEWHERE CLASSIFIED"
24/02/2020,YOUTH OFFER SERVICE,SCREWFIX DIR.LTD,385.86,EQUIPMENT,"BUILDING MATERIALS, LUMBER STORES"
24/02/2020,SOLD DAY TO DAY OPERATIONS,TICKETMASTER UK,"1,248.00",EDUC VISITS/HOLS/CAMPS/TOYS,"THEATRICAL PRODUCERS(EXCL MOTION PIX),TICKET AGNCY"
25/02/2020,B & C PRIMARY AUTHORITY PARTNERSHIP     ,VALE GLAM COUNCIL,258.75,FEES,GOVERNMENT SERVICES-NOT ELSEWHERE CLASSIFIED
25/02/2020,BIRCHLANDS,FOWLES CRUSHED CONCRET,270.00,EQUIPMENT,"UTLTS-ELCTRC, GAS, HEATING OIL, SANITARY, WATER"
25/02/2020,YOUTH OFFER SERVICE,SCREWFIX DIR.LTD,280.43,EQUIPMENT,"BUILDING MATERIALS, LUMBER STORES"
25/02/2020,ASSISTANT DIRECTOR - ENVIRONMENT,BRUNEL ENGRAVING ECOM,371.40,EQUIPMENT,"DURABLE GOODS, NOT ELSEWHERE CLASSIFIED"
25/02/2020,TRAINING AND DEVELOPMENT,WWW.LOCAL.GOV.UK,474.00,SUBSISTENCE AND CONFERENCE EXPENSES,BUSINESS SERVICES-NOT ELSEWHERE CLASSIFIED
25/02/2020,BURBANK COMMUNITY HOME,HOLIDAY PAYMENT VRUK,798.00,EDUC VISITS/HOLS/CAMPS/TOYS,TRAVEL AGENCIES AND TOUR OPERATORS
25/02/2020,COM BUSINESS SUPPORT,HEALTHCARE CONFERENCES,829.50,TRAINING EXPENSES EXTERNAL GENERAL,BUSINESS SERVICES-NOT ELSEWHERE CLASSIFIED
25/02/2020,TRANSPORT,WWW.BRITISHPARTS.C,841.58,VEHICLE REPAIRS AND MAINTENANCE,MISC/AUTO/AIRCRAFT/FARM EQUIP  NOT ELSEWHERE CLASS
25/02/2020,WAVERLEY CMHRS CARE,TRAVELODGE GB0000,897.96,OTHER COMMUNITY CARE PRIV,TRAVELODGE
25/02/2020,RECRUITMENT,REDACTIVE PUBLISH,900.00,STAFF ADVERTISING ,MISCELLANEOUS PUBLISHING AND PRINTING
25/02/2020,IMT PRODUCTION APPLICATIONS TEAM,SWING SOFTWARE,"1,913.42",COMPUTER SOFTWARE,COMPUTER SOFTWARE STORES
26/02/2020,RIGHTS & PARTICIPATION TEAM,HOO HOOTSUITE INC,360.00,COMPUTER SOFTWARE,BUSINESS SERVICES-NOT ELSEWHERE CLASSIFIED
26/02/2020,ABBEYWOOD,AMZNMKTPLACE,386.99,FURNITURE,MISCELLANEOUS AND SPECIALTY RETAIL STORES
26/02/2020,SE SECTION 17 CARE,TRAVELODGE GB0000,390.58,INDEPENDENT LIVING PLACEMENTS,TRAVELODGE
26/02/2020,TRAINING AND DEVELOPMENT,GOVERNMENT EVENTS,396.78,SUBSISTENCE AND CONFERENCE EXPENSES,"ASSOCIATIONS-CIVIC, SOCIAL, AND FRATERNAL"
26/02/2020,HEAD OF SCHOOLS AND LEARNING,SPRINGHOUSE SOLICITORS,420.00,OTHER COMMUNITY CARE VOL,"ATTORNEYS, LEGAL SERVICES"
26/02/2020,HEATHSIDE,NURSECALLMATS.CO.UK,432.00,EQUIPMENT,"EQUIP, FURNITURE, HOME FURNSHNGS STRS (EXCPT APPL)"
26/02/2020,LOCAL DELIVERY GROUP,AUTOGLASS,464.06,VEHICLE RUNNING COSTS,"AUTOMOTIVE PARTS, ACCESSORIES STORES"
26/02/2020,SOLD ESTATES MANAGEMENT,OTTER NURSERY,"1,000.00",UPKEEP OF GROUNDS,LANDSCAPING AND HORTICULTURAL SERVICES
26/02/2020,SURREY ARTS GENERAL,AMAZON.CO.UK VH0PF9EM5,"1,001.00",EQUIPMENT,DIRECT MARKETING-OTHER DIRECT MARKETERS/NOT ELSEW.
26/02/2020,BURBANK COMMUNITY HOME,HEX ALTONTOWERSHOLIDAY,"1,007.30",EDUC VISITS/HOLS/CAMPS/TOYS,TRAVEL AGENCIES AND TOUR OPERATORS
26/02/2020,SOLD ESTATES MANAGEMENT,OTTER NURSERY,"1,040.00",UPKEEP OF GROUNDS,LANDSCAPING AND HORTICULTURAL SERVICES
26/02/2020,TRANSPORT,WWW.ANSONUK.CO.UK,"2,122.56",OPERATIONAL FIRE EQUIPMENT,PROFESSIONAL SERVICES-NOT ELSEWHERE CLASSIFIED
26/02/2020,LIBERTAS COMMUNITY HOME,BRITISH A 125HOL42298220,"2,791.58",EDUC VISITS/HOLS/CAMPS/TOYS,BRITISH A
27/02/2020,TRANSPORT,PAYPAL  METALSTORE,259.20,PURCHASE OF BUILDING MATERIALS,ADVERTISING SERVICES
27/02/2020,RIGHTS & PARTICIPATION TEAM,WWW.KIDZANIA.CO.UK,308.00,EDUC VISITS/HOLS/CAMPS/TOYS,BUSINESS SERVICES-NOT ELSEWHERE CLASSIFIED
27/02/2020,SPLASH PROJECT,AMZNMKTPLACE,350.79,CURRICULUM EQUIPMENT AND FURNITURE,MISCELLANEOUS AND SPECIALTY RETAIL STORES
27/02/2020,INSTRUMENT HIRE SHOP,BIGDUG LIMITED,358.44,EQUIPMENT,HARDWARE EQUIPMENT AND SUPPLIES
27/02/2020,SOLD DAY TO DAY OPERATIONS,BRITISH CANOEING,360.00,FEES,"CLUBS-CNTRY,MBRSHIP(ATHLET,REC,SPRTS,PRIVATE GOLF"
27/02/2020,PE/CDT MAINTENANCE OVERHEADS,MARLOW ROPES LTD,396.43,EQUIPMENT,INDUSTRIAL SUPPLIES NOT ELSEWHERE CLASSIFIED
27/02/2020,ASSET MANAGEMENT PLAN,WWW.EPTRAINING.CO.UK,425.00,TRAINING USING EXTERNAL PROVIDERS,"SCHOOLS, TRADE AND VOCATIONAL"
27/02/2020,PE/CDT MAINTENANCE OVERHEADS,UNIVERSAL SERVICES (SP,496.80,ITEMS PURCHASED FOR RE-SALE,"ATHLTIC FIELDS,COMMRCL SPRT,SPRT CLBS,SPRT PROMOTR"
27/02/2020,NE TEACHERS,PAYPAL  BEECHLODGES,600.00,CURRIC BOOKS,SCHOOLS & EDUCATIONAL SVC-NOT ELSEWHERE CLASSIFIED
27/02/2020,NW SECTION 17 CARE,TRAVELODGE GB0000,911.73,INDEPENDENT LIVING PLACEMENTS,TRAVELODGE
27/02/2020,NW NIL RECOURSE TO PUBLIC FUNDS CARE,THE WOKING HOTEL,931.28,INDEPENDENT LIVING PLACEMENTS,"LODGING-HOTELS,MOTELS,RESORTS-NOT CLASSIFIED"
27/02/2020,TRANSPORT,PAYPAL  HAMPSHIREFL,957.35,PURCHASE OF BUILDING MATERIALS,"FABRIC, NEEDLEWORK, PIECE GOODS, AND SEWING STORES"
27/02/2020,ORBIS TRAINING PROPERTY,WWW.QA.COM,"2,849.28",TRAINING EXPENSES EXTERNAL GENERAL,SCHOOLS & EDUCATIONAL SVC-NOT ELSEWHERE CLASSIFIED
27/02/2020,TRANSPORT,HI-TEC EUROPE LTD,"3,954.04","CLOTHING, UNIFORM AND LAUNDRY",SPORTING GOODS STORES
28/02/2020,PE/CDT MAINTENANCE OVERHEADS,TECHSOFT MOTO,335.40,EQUIPMENT,"ARTIST SUPPLY STORES, CRAFT SHOPS"
28/02/2020,HAVEN GUILDFORD,AMZNMKTPLACE,443.28,CURRIC BOOKS,MISCELLANEOUS AND SPECIALTY RETAIL STORES
28/02/2020,BUSINESS IMPROVEMENTS,AMZNMKTPLACE AMAZON.CO,636.50,COMPUTER CONSUMABLES,MISCELLANEOUS AND SPECIALTY RETAIL STORES
28/02/2020,TRAINING AND DEVELOPMENT,RADISSON BLU HOTEL XVU,638.00,TRAINING EXPENSES EXTERNAL GENERAL,RADISSON BLU
28/02/2020,ACL CENTRAL EXPENDITURE,HELLOPRINT B.V.,763.23,ADVERTISING (STATUTORY NOTICES),"QUICK COPY,REPRODUCTION AND BLUEPRINTING SERVICES"
28/02/2020,ACL CENTRAL EXPENDITURE,SCREENCLOUD,"1,143.44",HEATING OIL & FUEL,"COMP PROGRAMING,DATA PRCSNG,INTGRTD SYS DSGN SRVS"
28/02/2020,ORBIS TRAINING PROPERTY,RICS COM GBP CYBS,"1,872.00",TRAINING EXPENSES EXTERNAL GENERAL,"ORGANIZATIONS, MEMBERSHIP-NOT ELSEWHERE CLASSIFIED"
29/02/2020,FAIRCROFT COMMUNITY HOME,TESCO STORE 2812,256.70,PURCHASE OF FOOD (RAW MATERIALS),"GROCERY STORES, SUPERMARKETS"
29/02/2020,CHEYNE WALK COMMUNITY HOME,TESCO-STORES 6647,286.35,PURCHASE OF FOOD (RAW MATERIALS),"GROCERY STORES, SUPERMARKETS"
02/03/2020,SHELL UK LICENSING,SOUTH CAMBS DC WEB,271.00,FEES,GOVERNMENT SERVICES-NOT ELSEWHERE CLASSIFIED
02/03/2020,SPEECH & LANGUAGE THERAPY,AMZNMKTPLACE,281.94,EQUIPMENT,MISCELLANEOUS AND SPECIALTY RETAIL STORES
02/03/2020,HEATHSIDE,ARGOS LTD,372.98,EQUIPMENT,DISCOUNT STORES
02/03/2020,SOLD MANAGEMENT AND OVERHEADS,PAYPAL  FARLA MED,411.98,MEDICAL EXPENSES,MISCELLANEOUS AND SPECIALTY RETAIL STORES
02/03/2020,HOLLAND CLOSE RESIDENTIAL HOME,WF  WAYFAIR 3057054084,434.27,EQUIPMENT,"EQUIP, FURNITURE, HOME FURNSHNGS STRS (EXCPT APPL)"
02/03/2020,YOUTH OFFER SERVICE,TRAVIS PERKINS,494.15,EQUIPMENT,"BUILDING MATERIALS, LUMBER STORES"
02/03/2020,LOWER MOLE COUNTRYSIDE PROJECT,ST JOHN AMBULANCE,588.00,TRAINING USING EXTERNAL PROVIDERS,"ORGANIZATIONS, CHARITABLE AND SOCIAL SERVICES"
02/03/2020,ARUNDEL,BUTLINS,768.20,EDUC VISITS/HOLS/CAMPS/TOYS,"LODGING-HOTELS,MOTELS,RESORTS-NOT CLASSIFIED"
02/03/2020,KARIBU COMMUNITY HOME,HOLIDAY PAYMENT VRUK,785.00,EDUC VISITS/HOLS/CAMPS/TOYS,TRAVEL AGENCIES AND TOUR OPERATORS
02/03/2020,SOLD ESTATES MANAGEMENT,OTTER NURSERY,"1,000.00",UPKEEP OF GROUNDS,LANDSCAPING AND HORTICULTURAL SERVICES
02/03/2020,COVID19,THE MEDICAL WAREHOUSE,"1,593.54",OPERATIONAL FIRE EQUIPMENT,DENTAL/LAB/MED/OPHTHALMIC HOSP EQUIP & SUPPLIES
02/03/2020,CORPORATE GROUP -LEGAL SERVICES,HMCOURT-SERVICES.G,"6,864.68",LEGAL EXPENSES,FINES
03/03/2020,ACL CENTRAL EXPENDITURE,AO RETAIL LIMITED,259.00,REFRESHMENT COSTS,HOUSEHOLD APPLIANCE STORES
03/03/2020,ACL CENTRAL EXPENDITURE,GARDEN TRENDS LTD,321.05,EQUIPMENT,COMPUTER SOFTWARE STORES
03/03/2020,RECRUITMENT,GOOGLE  ADS5533019982,350.00,STAFF ADVERTISING ,ADVERTISING SERVICES
03/03/2020,ISPSB - ADAPTATIONS & IMPROVEMENTS,G SIMONDS HEALTHCARE L,370.40,EQUIPMENT,NURSING AND PERSONAL CARE FACILITIES
03/03/2020,HR LEADERSHIP DEVELOPMENT,DISRUPTIVE HR,594.00,TRAINING EXPENSES EXTERNAL GENERAL,COMPUTER SOFTWARE STORES
03/03/2020,HR LEADERSHIP DEVELOPMENT,DISRUPTIVE HR,594.00,TRAINING EXPENSES EXTERNAL GENERAL,COMPUTER SOFTWARE STORES
03/03/2020,TRANSPORT,PAYPAL  DSLDIRECT,816.00,PURCHASE OF BUILDING MATERIALS,CHEMICALS/ALLIED PRODUCTS NOT ELSEWHERE CLASSIFIED
03/03/2020,SOLD DAY TO DAY OPERATIONS,TICKETMASTER UK,"1,248.00",EDUC VISITS/HOLS/CAMPS/TOYS,"THEATRICAL PRODUCERS(EXCL MOTION PIX),TICKET AGNCY"
03/03/2020,COVID19,MEDIMARKSCI,"1,624.46",OPERATIONAL FIRE EQUIPMENT,VETERINARY SERVICES
04/03/2020,BURBANK COMMUNITY HOME,SAINSBURYS TO YOU 0686,256.82,PURCHASE OF FOOD (RAW MATERIALS),"GROCERY STORES, SUPERMARKETS"
04/03/2020,ABBEYWOOD,AKZONOBEL_UK,269.93,DAY TO DAY MAINTENANCE,"GLASS, PAINT, WALLPAPER STORES"
04/03/2020,ABBEYWOOD,BOOKER LIMITED ALDERSH,282.75,RESIDENTIAL PRIV,CATERERS
04/03/2020,MEMBERS EXPENSES (INCL ALLOWANCES),WWW.EMAP.COM,296.40,SUBSCRIPTIONS,MISCELLANEOUS PUBLISHING AND PRINTING
04/03/2020,CORE ACTIVITY                           ,AMZNMKTPLACE,308.00,EQUIPMENT,MISCELLANEOUS AND SPECIALTY RETAIL STORES
04/03/2020,DOWNLANDS COUNTRYSIDE PROJECT,AMZNMKTPLACE AMAZON.CO,336.30,EQUIPMENT,MISCELLANEOUS AND SPECIALTY RETAIL STORES
04/03/2020,EQUIPMENT SCC BUDGET,FIRSTCHOICE CATERING S,341.98,EQUIPMENT,INDUSTRIAL SUPPLIES NOT ELSEWHERE CLASSIFIED
04/03/2020,SE SECTION 17 CARE,TRAVELODGE GB0000,348.76,INDEPENDENT LIVING PLACEMENTS,TRAVELODGE
04/03/2020,QUADRANT COURT WOKING,WWW.MACLINGROUP.CO.UK,386.82,CLEANING MATERIALS,"SANITATION, POLISHING & SPECIALITY CLEANING PREP"
04/03/2020,COUNTY HALL,WWW.MACLINGROUP.CO.UK,386.82,CLEANING MATERIALS,"SANITATION, POLISHING & SPECIALITY CLEANING PREP"
04/03/2020,DOWNLANDS COUNTRYSIDE PROJECT,AMZNMKTPLACE,391.29,EQUIPMENT,MISCELLANEOUS AND SPECIALTY RETAIL STORES
04/03/2020,SPEECH & LANGUAGE THERAPY,GL-ASSESMENT.CO.UK,400.78,EQUIPMENT,BOOK STORES
04/03/2020,BARNFIELD,CURRYS,419.98,EQUIPMENT,ELECTRONIC SALES
04/03/2020,SE TARGETTED YOUTH SUPPORT,AMZNMKTPLACE,444.28,COMPUTER HARDWARE,MISCELLANEOUS AND SPECIALTY RETAIL STORES
04/03/2020,SPEECH & LANGUAGE THERAPY,WWW.ELKLAN.CO.UK,450.00,EQUIPMENT,SCHOOLS & EDUCATIONAL SVC-NOT ELSEWHERE CLASSIFIED
04/03/2020,PE/CDT MAINTENANCE OVERHEADS,AUTOGLASS,653.93,VEHICLE RUNNING COSTS,"AUTOMOTIVE PARTS, ACCESSORIES STORES"
04/03/2020,HR LEADERSHIP DEVELOPMENT,WWW.THEHUBEVENTS.COM,672.00,TRAINING EXPENSES EXTERNAL GENERAL,"CONSULTING, MANAGEMENT, AND PUBLIC RELATIONS SVCS"
04/03/2020,HR LEADERSHIP DEVELOPMENT,WWW.THEHUBEVENTS.COM,672.00,TRAINING EXPENSES EXTERNAL GENERAL,"CONSULTING, MANAGEMENT, AND PUBLIC RELATIONS SVCS"
04/03/2020,RIGHTS & PARTICIPATION TEAM,WWW.JOHNLEWIS.COM,768.00,EDUC VISITS/HOLS/CAMPS/TOYS,DEPARTMENT STORES
04/03/2020,TRANSPORT,CANTEL (UK) LIMITED,774.78,OPERATIONAL FIRE EQUIPMENT,DENTAL/LAB/MED/OPHTHALMIC HOSP EQUIP & SUPPLIES
04/03/2020,TRANSPORT,APEX HYDRAULICS LTD,"2,131.20",VEHICLE REPAIRS AND MAINTENANCE,INDUSTRIAL SUPPLIES NOT ELSEWHERE CLASSIFIED
05/03/2020,RIGHTS & PARTICIPATION TEAM,AMK CHAUFFEUR DRIV,275.00,NON-STAFF RELATED TRANSPORT COSTS,LIMOUSINES AND TAXICABS
05/03/2020,COMMUNICATIONS,APPLE.COM/UK,538.00,EQUIPMENT,ELECTRONIC SALES
05/03/2020,ACL CENTRAL EXPENDITURE,WWW.OFFICEFURNITUREONL,590.40,EQUIPMENT,OFFICE AND COMMERCIAL FURNITURE
05/03/2020,ACL CENTRAL EXPENDITURE,UK CONTRACT FLOORING,688.80,EQUIPMENT,FLOOR COVERING STORES
05/03/2020,TRAINING AND DEVELOPMENT,SELCO BUILDERS,"1,056.00",TRAINING EXPENSES EXTERNAL GENERAL,"BUILDING MATERIALS, LUMBER STORES"
05/03/2020,TRAINING SURREY HIGHWAYS,WWW.SHOP.CITB.CO.UK,"1,865.00",TRAINING EXPENSES EXTERNAL GENERAL,"SCHOOLS, TRADE AND VOCATIONAL"
06/03/2020,ACL CENTRAL EXPENDITURE,WWW.CGPBOOKS.CO.UK,288.00,EQUIPMENT,MISCELLANEOUS AND SPECIALTY RETAIL STORES
06/03/2020,SPEECH & LANGUAGE THERAPY,AMZNMKTPLACE AMAZON.CO,302.79,EQUIPMENT,MISCELLANEOUS AND SPECIALTY RETAIL STORES
06/03/2020,INSTRUMENT HIRE SHOP,STEROPLAST LTD,322.01,CLEANING MATERIALS,DENTAL/LAB/MED/OPHTHALMIC HOSP EQUIP & SUPPLIES
06/03/2020,INSTRUMENT HIRE SHOP,WWW.ALDAUTOMOTIVE.CO.U,364.58,HIRE OF VEHICLES,BUSINESS SERVICES-NOT ELSEWHERE CLASSIFIED
06/03/2020,CORONER,CURRYS ONLINE,369.98,FIXTURES AND FITTINGS,ELECTRONIC SALES
06/03/2020,ABBEYWOOD,AMAZON.CO.UK 3A40021P5,434.22,FURNITURE,DIRECT MARKETING-OTHER DIRECT MARKETERS/NOT ELSEW.
06/03/2020,YOUTH OFFER SERVICE,TRAVIS PERKINS,483.91,EQUIPMENT,"BUILDING MATERIALS, LUMBER STORES"
06/03/2020,DOWNLANDS COUNTRYSIDE PROJECT,DAVIDSONS,606.00,EQUIPMENT,AGRICULTURAL COOPERATIVES
06/03/2020,TRANSPORT,HOLIDAY INN COVENT,614.40,MISCELLANEOUS STAFF TRAVEL,"LODGING-HOTELS,MOTELS,RESORTS-NOT CLASSIFIED"
06/03/2020,ACL CENTRAL EXPENDITURE,HELLOPRINT B.V.,799.79,PUBLICITY,"QUICK COPY,REPRODUCTION AND BLUEPRINTING SERVICES"
06/03/2020,ACL CENTRAL EXPENDITURE,HELLOPRINT B.V.,888.20,WATER CHARGES,"QUICK COPY,REPRODUCTION AND BLUEPRINTING SERVICES"
09/03/2020,TS SERVICE MANAGEMENT,WISE,674.40,FEES,BUSINESS SERVICES-NOT ELSEWHERE CLASSIFIED
09/03/2020,TRANSPORT,SP SERVICES,734.04,OPERATIONAL FIRE EQUIPMENT,DENTAL/LAB/MED/OPHTHALMIC HOSP EQUIP & SUPPLIES
09/03/2020,TRANSPORT,THE ROOF BOX COMPANY,928.03,VEHICLE REPAIRS AND MAINTENANCE,SPORTING GOODS STORES
10/03/2020,NW CARE - NON-LAC CP & COURT,EASYJET00 000K1L2XPN,286.98,NON-STAFF RELATED TRANSPORT COSTS,EASYJET
10/03/2020,FOSTER CARER RECRUITMENT,TEAM COST 10/03/20 10/03/20 BOOKS APPROVED FIONA MCGOWAN (94.71%),322.50,BOOKS,SCHOOLS & EDUCATIONAL SVC-NOT ELSEWHERE CLASSIFIED
10/03/2020,HOLLAND CLOSE RESIDENTIAL HOME,CURRYS ONLINE,358.96,EQUIPMENT,ELECTRONIC SALES
10/03/2020,SURREY HILLS AONB,SURVEYMONKEY,384.00,COMPUTER SERVICES,"COMP PROGRAMING,DATA PRCSNG,INTGRTD SYS DSGN SRVS"
10/03/2020,RECRUITMENT,ARBORICULTURAL ASSOCIA,420.00,STAFF ADVERTISING ,"ORGANIZATIONS, CHARITABLE AND SOCIAL SERVICES"
10/03/2020,TRANSPORT STUDIES TEAM,WWW.SOTON.AC.UK,550.00,TRAINING EXPENSES EXTERNAL GENERAL,"COLLEGES, UNIV, PRO SCHOOLS, JUNIOR COLLEGES"
10/03/2020,PE/CDT MAINTENANCE OVERHEADS,UNIVERSAL SERVICES (SP,611.70,ITEMS PURCHASED FOR RE-SALE,"ATHLTIC FIELDS,COMMRCL SPRT,SPRT CLBS,SPRT PROMOTR"
10/03/2020,TRANSPORT STUDIES TEAM,WWW.TRANSPORTXTRA.COM,920.00,TRAINING USING EXTERNAL PROVIDERS,BUSINESS SERVICES-NOT ELSEWHERE CLASSIFIED
10/03/2020,WAVERLEY CMHRS CARE,TRAVELODGE GB0000,920.40,OTHER COMMUNITY CARE PRIV,TRAVELODGE
10/03/2020,RECRUITMENT,WWW.MARKALLENGROUP.COM,"1,242.00",STAFF ADVERTISING ,SCHOOLS & EDUCATIONAL SVC-NOT ELSEWHERE CLASSIFIED
10/03/2020,LIBERTAS COMMUNITY HOME,SOFA WORKSHOP,"3,452.00",FURNITURE,"EQUIP, FURNITURE, HOME FURNSHNGS STRS (EXCPT APPL)"
11/03/2020,SPLASH PROJECT,AMZNMKTPLACE,270.26,CURRICULUM EQUIPMENT AND FURNITURE,MISCELLANEOUS AND SPECIALTY RETAIL STORES
11/03/2020,HEALTH IMPROVEMENT,WWW.LOCAL.GOV.UK,274.80,TRAINING EXPENSES EXTERNAL GENERAL,BUSINESS SERVICES-NOT ELSEWHERE CLASSIFIED
11/03/2020,NW CARE - NON-LAC CP & COURT,EASYJET00 000K1L4J5H,286.98,NON-STAFF RELATED TRANSPORT COSTS,EASYJET
11/03/2020,RIGHTS & PARTICIPATION TEAM,ANIMATION EVENTS LTD,295.00,EDUC VISITS/HOLS/CAMPS/TOYS,PHOTOGRAPHIC STUDIOS
11/03/2020,LIBRARIES CENTRAL,PREMIER INN44521815,300.00,SUBSISTENCE AND CONFERENCE EXPENSES,PREMIER INN
11/03/2020,BURBANK COMMUNITY HOME,SAINSBURYS TO YOU 0686,310.27,PURCHASE OF FOOD (RAW MATERIALS),"GROCERY STORES, SUPERMARKETS"
11/03/2020,CORE ACTIVITY                           ,AMZNMKTPLACE,328.42,EQUIPMENT,MISCELLANEOUS AND SPECIALTY RETAIL STORES
11/03/2020,REIGATE & BANSTEAD LOCAL CARE OP,CURRYS ONLINE,344.00,EQUIPMENT,ELECTRONIC SALES
11/03/2020,BARNFIELD,FAIRALLS (BUILDERS ME,371.55,UPKEEP OF GROUNDS,"BUILDING MATERIALS, LUMBER STORES"
11/03/2020,ASSISTANT DIRECTOR - ENVIRONMENT,GOVERNMENT EVENTS,386.58,EQUIPMENT,"ASSOCIATIONS-CIVIC, SOCIAL, AND FRATERNAL"
11/03/2020,COUNTY HALL,WWW.PARRS.CO.UK,397.20,EQUIPMENT,HARDWARE EQUIPMENT AND SUPPLIES
11/03/2020,CLUB LINKS                              ,TADWORTH LEISURE & COM,399.06,FEES,PROFESSIONAL SERVICES-NOT ELSEWHERE CLASSIFIED
11/03/2020,YOUTH OFFER SERVICE,SCREWFIX DIRECT,413.75,EQUIPMENT,HOME SUPPLY WAREHOUSE STORES
11/03/2020,TRANSPORT,HOLIDAY INN COVENT,428.45,MISCELLANEOUS STAFF TRAVEL,"LODGING-HOTELS,MOTELS,RESORTS-NOT CLASSIFIED"
11/03/2020,CHEYNE WALK COMMUNITY HOME,BRITISH HEART FOUNDA,549.97,FURNITURE,"ORGANIZATIONS, CHARITABLE AND SOCIAL SERVICES"
12/03/2020,CHEYNE WALK COMMUNITY HOME,TESCO-STORES 6647,300.46,PURCHASE OF FOOD (RAW MATERIALS),"GROCERY STORES, SUPERMARKETS"
12/03/2020,DEVELOPMENT TEAM,MSFT   E0100AE4D0,354.62,SUBSCRIPTIONS,"COMPUTERS, COMPUTER PERIPHERAL EQUIPMENT, SOFTWARE"
12/03/2020,SURREY PENSIONS,JURYS INN BIRMINGHAM,368.25,PURCHASE CARD TRANSACTION LOG DEFAULT,"LODGING-HOTELS,MOTELS,RESORTS-NOT CLASSIFIED"
12/03/2020,RIGHTS & PARTICIPATION TEAM,ANIMATION EVENTS LTD,378.15,EDUC VISITS/HOLS/CAMPS/TOYS,PHOTOGRAPHIC STUDIOS
12/03/2020,COVID19,MICHAEL'S WORKWEAR LTD,393.12,OPERATIONAL FIRE EQUIPMENT,MISCELLANEOUS AND SPECIALTY RETAIL STORES
12/03/2020,RUTH HOUSE,PAYPAL  DEBORAHANNE,400.00,EDUC VISITS/HOLS/CAMPS/TOYS,PROFESSIONAL SERVICES-NOT ELSEWHERE CLASSIFIED
12/03/2020,COVID19,MEDIMARKSCI,410.53,OPERATIONAL FIRE EQUIPMENT,VETERINARY SERVICES
12/03/2020,FAIRCROFT COMMUNITY HOME,PAYPAL  IKEALIMITED,424.00,FURNITURE,DEPARTMENT STORES
12/03/2020,FAIRCROFT COMMUNITY HOME,CURRYS SUPERSTORE,429.00,FURNITURE,ELECTRONIC SALES
12/03/2020,RIGHTS & PARTICIPATION TEAM,FRAMES.CO.UK,478.40,EDUC VISITS/HOLS/CAMPS/TOYS,"EQUIP, FURNITURE, HOME FURNSHNGS STRS (EXCPT APPL)"
12/03/2020,EARLY YEARS NEEDS,WWW.PECS.ORG.UK,660.00,OTHER COMMUNITY CARE VOL,SCHOOLS & EDUCATIONAL SVC-NOT ELSEWHERE CLASSIFIED
12/03/2020,DEVELOPMENT TEAM,MSFT   E0100ADZKH,884.40,SUBSCRIPTIONS,"COMPUTERS, COMPUTER PERIPHERAL EQUIPMENT, SOFTWARE"
12/03/2020,NW NIL RECOURSE TO PUBLIC FUNDS CARE,THE WOKING HOTEL,931.28,INDEPENDENT LIVING PLACEMENTS,"LODGING-HOTELS,MOTELS,RESORTS-NOT CLASSIFIED"
12/03/2020,SHELL UK LICENSING,STAFFORDSHIRE COUNTY C,"1,250.00",FEES,GOVERNMENT SERVICES-NOT ELSEWHERE CLASSIFIED
12/03/2020,TS SERVICE MANAGEMENT,DHC LTD VT,"4,434.00",EQUIPMENT,PROFESSIONAL SERVICES-NOT ELSEWHERE CLASSIFIED
12/03/2020,COVID19,OXFORD SAFETY SUPPLIES,"4,995.60",OPERATIONAL FIRE EQUIPMENT,"MUSIC STORES-INSTRUMENTS, PIANOS, SHEET MUSIC"
13/03/2020,JOINT EMERGENCY CONTROL CENTRE,WWW.FURNITUREATWORK.CO,270.00,FURNITURE,"EQUIP, FURNITURE, HOME FURNSHNGS STRS (EXCPT APPL)"
13/03/2020,TRANSPORT,AMZNMKTPLACE,310.00,FURNITURE,MISCELLANEOUS AND SPECIALTY RETAIL STORES
13/03/2020,ACT,AMZNMKTPLACE AMAZON.CO,332.99,EQUIPMENT,MISCELLANEOUS AND SPECIALTY RETAIL STORES
13/03/2020,JOINT EMERGENCY CONTROL CENTRE,AMZNMKTPLACE,373.00,EQUIPMENT,MISCELLANEOUS AND SPECIALTY RETAIL STORES
13/03/2020,PE/CDT MAINTENANCE OVERHEADS,EPSOM AND EWELL BOROUG,429.28,TRADE REFUSE,GOVERNMENT SERVICES-NOT ELSEWHERE CLASSIFIED
13/03/2020,EARLY YEARS NEEDS,PAYPAL  AUTISMINDEP,548.00,OTHER COMMUNITY CARE VOL,"ORGANIZATIONS, CHARITABLE AND SOCIAL SERVICES"
13/03/2020,TRANSPORT,SHRED STATION LIMI,602.40,EQUIPMENT,INFORMATION RETRIEVAL SERVICES
13/03/2020,EARLY YEARS NEEDS,PAYPAL  WIDGIT,"2,880.00",OTHER COMMUNITY CARE VOL,COMPUTER SOFTWARE STORES
13/03/2020,NE FAMILY SAFEGUARDING,ISCC2G3N46975G IMM HEA,"3,000.00",FEES,GOVERNMENT SERVICES-NOT ELSEWHERE CLASSIFIED
16/03/2020,LIBERTAS COMMUNITY HOME,SAINSBURYS SACAT 0652,250.11,PURCHASE OF FOOD (RAW MATERIALS),"GROCERY STORES, SUPERMARKETS"
16/03/2020,HOLLAND CLOSE RESIDENTIAL HOME,WWW.THERANGE.CO.UK,255.34,EQUIPMENT,"EQUIP, FURNITURE, HOME FURNSHNGS STRS (EXCPT APPL)"
16/03/2020,CORONER,AMZNMKTPLACE AMAZON.CO,282.60,EQUIPMENT,MISCELLANEOUS AND SPECIALTY RETAIL STORES
16/03/2020,TRAINING AND DEVELOPMENT,WHITE RABBIT,314.66,TRAINING EXPENSES EXTERNAL GENERAL,"EATING PLACES, RESTAURANTS"
16/03/2020,HOLLAND CLOSE RESIDENTIAL HOME,CURRYS ONLINE,327.95,EQUIPMENT,ELECTRONIC SALES
16/03/2020,TRANSPORT,AIRENGINEER,347.53,VEHICLE REPAIRS AND MAINTENANCE,PROFESSIONAL SERVICES-NOT ELSEWHERE CLASSIFIED
16/03/2020,WEST CWD NON-LAC CARE,FLEXI-LETS,350.00,INDEPENDENT LIVING PLACEMENTS,"LODGING-HOTELS,MOTELS,RESORTS-NOT CLASSIFIED"
16/03/2020,TRANSPORT,PAYPAL  VARIDESK,365.00,FURNITURE,OFFICE AND COMMERCIAL FURNITURE
16/03/2020,PE/CDT MAINTENANCE OVERHEADS,WILSONS EPSOM,396.00,VEHICLE RUNNING COSTS,AUTOMOTIVE SERVICE SHOPS
16/03/2020,ORBIS HR PROGRAMME AND PERFORMANCE,WWW.SPEAKIT.INFO,418.80,EQUIPMENT,"OFFICE, SCHOOL SUPPLY, AND STATIONERY STORES"
16/03/2020,SE LAC AND LEAVING CARE,ARGOS LTD,454.91,EQUIPMENT,DISCOUNT STORES
16/03/2020,TRANSPORT,PAYPAL  SHEETPLASTC,633.95,PURCHASE OF BUILDING MATERIALS,INDUSTRIAL SUPPLIES NOT ELSEWHERE CLASSIFIED
16/03/2020,TRANSPORT,MEDIMARKSCI,664.85,OPERATIONAL FIRE EQUIPMENT,VETERINARY SERVICES
16/03/2020,EARLY YEARS NEEDS,AMZNMKTPLACE,"1,004.65",OTHER COMMUNITY CARE VOL,MISCELLANEOUS AND SPECIALTY RETAIL STORES
17/03/2020,PE/CDT MAINTENANCE OVERHEADS,THE UK HIDE CO LTD,250.01,ITEMS PURCHASED FOR RE-SALE,LEATHER GOODS AND LUGGAGE STORES
17/03/2020,PE/CDT MAINTENANCE OVERHEADS,ELEMENTERY LIMITED,259.80,EQUIPMENT,INDUSTRIAL SUPPLIES NOT ELSEWHERE CLASSIFIED
17/03/2020,TRANSPORT,AMZNMKTPLACE AMAZON.CO,265.98,FURNITURE,MISCELLANEOUS AND SPECIALTY RETAIL STORES
17/03/2020,RUTH HOUSE,SAINSBURYS TO YOU 0686,294.20,PURCHASE OF FOOD (RAW MATERIALS),"GROCERY STORES, SUPERMARKETS"
17/03/2020,BURBANK COMMUNITY HOME,SAINSBURYS TO YOU 0686,329.77,PURCHASE OF FOOD (RAW MATERIALS),"GROCERY STORES, SUPERMARKETS"
17/03/2020,CPCS ENGAGEMENT TEAM,ANIMAKER INC.,399.92,SUBSCRIPTIONS,COMPUTER SOFTWARE STORES
17/03/2020,ACL CENTRAL EXPENDITURE,WWW.OFFICEFURNITUREONL,462.00,EQUIPMENT,OFFICE AND COMMERCIAL FURNITURE
17/03/2020,TRANSPORT,AMZNMKTPLACE,531.96,FURNITURE,MISCELLANEOUS AND SPECIALTY RETAIL STORES
17/03/2020,LIBERTAS COMMUNITY HOME,WWW.EUREKADIRECT.CO.UK,535.62,EDUC VISITS/HOLS/CAMPS/TOYS,DENTAL/LAB/MED/OPHTHALMIC HOSP EQUIP & SUPPLIES
17/03/2020,SECTOR MANAGER,ROYAL MAIL ONLINE SHOP,630.00,ITEMS PURCHASED FOR RE-SALE,POSTAL SERVICES-GOVERNMENT ONLY
17/03/2020,COVID19,MICHAEL'S WORKWEAR LTD,655.20,OPERATIONAL FIRE EQUIPMENT,MISCELLANEOUS AND SPECIALTY RETAIL STORES
17/03/2020,SECTOR MANAGER,ROYAL MAIL ONLINE SHOP,"1,470.00",ITEMS PURCHASED FOR RE-SALE,POSTAL SERVICES-GOVERNMENT ONLY
18/03/2020,RUTH HOUSE,ARGOS LTD,251.93,EQUIPMENT,DISCOUNT STORES
18/03/2020,TRANSPORT,BISON PARTS LTD,264.60,VEHICLE REPAIRS AND MAINTENANCE,MOTOR VEHICLE SUPPLIES AND NEW PARTS
18/03/2020,LADOS AND CHILD EMPLOYMENT TEAM,AMAZON.CO.UK 0P55O2CO5,273.83,OTHER COMMUNITY CARE VOL,DIRECT MARKETING-OTHER DIRECT MARKETERS/NOT ELSEW.
18/03/2020,BURBANK COMMUNITY HOME,CHIPSAWAY,276.00,EQUIPMENT,AUTOMOTIVE SERVICE SHOPS
18/03/2020,HAVEN GUILDFORD,AMAZON.CO.UK 7S1C22GZ5,499.99,CURRICULUM EQUIPMENT AND FURNITURE,DIRECT MARKETING-OTHER DIRECT MARKETERS/NOT ELSEW.
18/03/2020,LIBERTAS COMMUNITY HOME,GUILDFORD LOCK AND SAF,500.00,EQUIPMENT,"HAT CLEANING SHOPS, SHOE REPAIR SHOPS, SHOE SHINE"
18/03/2020,LIBERTAS COMMUNITY HOME,GUILDFORD LOCK AND SAF,500.00,EQUIPMENT,"HAT CLEANING SHOPS, SHOE REPAIR SHOPS, SHOE SHINE"
18/03/2020,LIBERTAS COMMUNITY HOME,GUILDFORD LOCK AND SAF,500.00,EQUIPMENT,"HAT CLEANING SHOPS, SHOE REPAIR SHOPS, SHOE SHINE"
18/03/2020,WORKPLACE COMMERCIAL TEAM,THE LOCATION GUIDE,584.40,PUBLICITY,BUSINESS SERVICES-NOT ELSEWHERE CLASSIFIED
18/03/2020,"NE REF, ASS & INT SERVICE - HUB 1",UKBA13820756399,"2,199.00",FEES,GOVERNMENT SERVICES-NOT ELSEWHERE CLASSIFIED
19/03/2020,FAIRCROFT COMMUNITY HOME,SOUTHERN LOCK & SAFE C,254.50,EQUIPMENT,BUSINESS SERVICES-NOT ELSEWHERE CLASSIFIED
19/03/2020,HIGHWAYS INFORMATION TEAM,CURRYS ONLINE,259.00,EQUIPMENT,ELECTRONIC SALES
19/03/2020,FAIRCROFT COMMUNITY HOME,SOUTHERN LOCK & SAFE C,388.50,EQUIPMENT,BUSINESS SERVICES-NOT ELSEWHERE CLASSIFIED
19/03/2020,ACL CENTRAL EXPENDITURE,MARTINS UPHOLSTERY SUP,596.76,EQUIPMENT,"DRAPERY, UPOLSTERY, AND WINDOW COVERINGS STORES"
19/03/2020,RECRUITMENT,INDEED,603.42,STAFF ADVERTISING ,BUSINESS SERVICES-NOT ELSEWHERE CLASSIFIED
19/03/2020,SERVICE DELIVERY RESOURCES,CANNON MOTOR TOOLS,898.56,CLEANING MATERIALS,AUTOMOTIVE SERVICE SHOPS
19/03/2020,SURREY ARTS GENERAL,ZOOM.GBP,"4,358.40",COMPUTER SOFTWARE,DIRECT MARKETING-CONTINUITY/SUBSCRIPTION MERCHANTS
20/03/2020,RUTH HOUSE,PP GREEN TANGERINE LTD,264.00,PURCHASE OF FOOD (RAW MATERIALS),CATERERS
20/03/2020,ACL CENTRAL EXPENDITURE,AMAZON.CO.UK 766TF39G5,295.45,EQUIPMENT,DIRECT MARKETING-OTHER DIRECT MARKETERS/NOT ELSEW.
20/03/2020,PE/CDT MAINTENANCE OVERHEADS,MARLOW ROPES LTD,306.50,EQUIPMENT,INDUSTRIAL SUPPLIES NOT ELSEWHERE CLASSIFIED
20/03/2020,HEAD OF FAMILY RESILIENCE,PLASTIC-ID,324.00,EQUIPMENT,STATIONERY/OFFICE SUPPLIES/PRINTING & WRITING PAP.
20/03/2020,FAIRMOUNT HOUSE LEATHERHEAD,WWWCEILINGTILESUKCOUK,429.60,EQUIPMENT,CONSTRUCTION MATERIALS NOT ELSEWHERE CLASSIFIED
20/03/2020,SURREY ARTS GENERAL,ARAB INSTRUMENTS,498.25,EQUIPMENT,"MUSIC STORES-INSTRUMENTS, PIANOS, SHEET MUSIC"
20/03/2020,SW TEACHERS,INCLUSIVE GROUP,559.80,EQUIPMENT,"COMP PROGRAMING,DATA PRCSNG,INTGRTD SYS DSGN SRVS"
20/03/2020,SPLASH PROJECT,TOTAL COMPUTER NETWORK,"2,046.00",CURRICULUM EQUIPMENT AND FURNITURE,"COMPUTERS, COMPUTER PERIPHERAL EQUIPMENT, SOFTWARE"
20/03/2020,TRANSPORT,WWW.MARQUEESFORSALE.UK,"2,352.00",EQUIPMENT,"CONTRACTORS,SPECIAL TRADE-NOT ELSEWHERE CLASSIFIED"
20/03/2020,TARGETED INTERVENTION,TOTAL COMPUTER NETWORK,"3,658.50",EDUC VISITS/HOLS/CAMPS/TOYS,"COMPUTERS, COMPUTER PERIPHERAL EQUIPMENT, SOFTWARE"
20/03/2020,TARGETED INTERVENTION,TOTAL COMPUTER NETWORK,"3,902.40",EDUC VISITS/HOLS/CAMPS/TOYS,"COMPUTERS, COMPUTER PERIPHERAL EQUIPMENT, SOFTWARE"
21/03/2020,SURREY ARTS GENERAL,AMZNMKTPLACE AMAZON.CO,761.73,EQUIPMENT,MISCELLANEOUS AND SPECIALTY RETAIL STORES
21/03/2020,SE EDUCATION PSYCHOLOGISTS,AMAZON.CO.UK N47CB4H65,813.60,EQUIPMENT,DIRECT MARKETING-OTHER DIRECT MARKETERS/NOT ELSEW.
21/03/2020,SPEECH & LANGUAGE THERAPY,AMAZON.CO.UK KR3R82CY5,918.96,EQUIPMENT,DIRECT MARKETING-OTHER DIRECT MARKETERS/NOT ELSEW.
22/03/2020,SPEECH & LANGUAGE THERAPY,AMAZON.CO.UK DA0A02745,262.56,EQUIPMENT,DIRECT MARKETING-OTHER DIRECT MARKETERS/NOT ELSEW.
22/03/2020,CHEYNE WALK COMMUNITY HOME,TESCO-STORES 6647,599.02,PURCHASE OF FOOD (RAW MATERIALS),"GROCERY STORES, SUPERMARKETS"
23/03/2020,RECRUITMENT,GOOGLE  ADS5533019982,500.00,STAFF ADVERTISING ,"COMP PROGRAMING,DATA PRCSNG,INTGRTD SYS DSGN SRVS"
23/03/2020,BURBANK COMMUNITY HOME,HEX ALTONTOWERSHOLIDAY,936.25,EDUC VISITS/HOLS/CAMPS/TOYS,TRAVEL AGENCIES AND TOUR OPERATORS
23/03/2020,2012 FESTIVALS,ROLAND UK LTD,"3,952.29",EQUIPMENT,"MUSIC STORES-INSTRUMENTS, PIANOS, SHEET MUSIC"
24/03/2020,ORCHARD COURT,PAYPAL  WINWINUK201 EB,495.72,MEDICAL EXPENSES,MISCELLANEOUS AND SPECIALTY RETAIL STORES
24/03/2020,THAMESIDE CENTRE,JUST PROJECTORS,496.57,EQUIPMENT,OFFICE PHOTOGRAPHIC PHOTOCOPY & MICROFILM EQUIPMT.
24/03/2020,RECRUITMENT,INDEED,603.76,STAFF ADVERTISING ,BUSINESS SERVICES-NOT ELSEWHERE CLASSIFIED
24/03/2020,TARGETED INTERVENTION,HP INC UK LIMITED,899.98,EDUC VISITS/HOLS/CAMPS/TOYS,"COMPUTERS, COMPUTER PERIPHERAL EQUIPMENT, SOFTWARE"
24/03/2020,NE CARE - CP & COURT LAC,WESLEY GRYK SOLICITORS,"1,053.00",OTHER COMMUNITY CARE VOL,"ATTORNEYS, LEGAL SERVICES"
24/03/2020,RUTH HOUSE,THINK FORD GUILDFO,"1,763.74",VEHICLE REPAIRS AND MAINTENANCE,AUTOMOTIVE SERVICE SHOPS
25/03/2020,TRANSPORT,PAYPAL  TATFC EBAY TAT,299.99,FURNITURE,"EQUIP, FURNITURE, HOME FURNSHNGS STRS (EXCPT APPL)"
25/03/2020,COUNTYWIDE MANAGED PRINT SERVICE,CARTRIDGE SAVE,478.00,PHOTOCOPIER MACHINES AND MATERIALS,STATIONERY/OFFICE SUPPLIES/PRINTING & WRITING PAP.
25/03/2020,RUTH HOUSE,WWW.BOZFRUITVEG.CO.UK,697.55,PURCHASE OF FOOD (RAW MATERIALS),COMPUTER SOFTWARE STORES
25/03/2020,RUTH HOUSE,WWW.BOZFRUITVEG.CO.UK,714.00,PURCHASE OF FOOD (RAW MATERIALS),COMPUTER SOFTWARE STORES
25/03/2020,RUTH HOUSE,WWW.BOZFRUITVEG.CO.UK,760.20,PURCHASE OF FOOD (RAW MATERIALS),COMPUTER SOFTWARE STORES
25/03/2020,HILLSIDE,WWW.IKEA.COM,"1,255.00",FURNITURE,"EQUIP, FURNITURE, HOME FURNSHNGS STRS (EXCPT APPL)"
26/03/2020,STRATEGIC LEADERSHIP (CEO & ACEO),WWW.SOLACE.ORG.UK,252.60,VENUE COSTS (INCLUDING HIRE OF ROOMS),"ORGANIZATIONS, MEMBERSHIP-NOT ELSEWHERE CLASSIFIED"
26/03/2020,MALLOW CRESCENT,AMAZON.CO.UK 5416I55X5,354.98,EDUC VISITS/HOLS/CAMPS/TOYS,DIRECT MARKETING-OTHER DIRECT MARKETERS/NOT ELSEW.
26/03/2020,HEALTH IMPROVEMENT,AMAZON.CO.UK UQ4JC0NW5,400.00,TRAINING EXPENSES EXTERNAL GENERAL,DIRECT MARKETING-OTHER DIRECT MARKETERS/NOT ELSEW.
26/03/2020,SUBSTANCE MISUSE 2,AMAZON.CO.UK 3D6YC7FT5,480.00,TRAINING EXPENSES EXTERNAL GENERAL,DIRECT MARKETING-OTHER DIRECT MARKETERS/NOT ELSEW.
26/03/2020,RECRUITMENT,INDEED,603.49,STAFF ADVERTISING ,BUSINESS SERVICES-NOT ELSEWHERE CLASSIFIED
26/03/2020,SEN ADAPTATIONS IN SCHOOLS,WWW.MANGAR.CO.UK,873.60,EQUIPMENT,"HEALTH PRACTITIONERS, MEDICAL SRVCS-NOT ELSEWHERE"
26/03/2020,WOODLANDS COMMUNITY HOME,RAINBOW BODY SHOP,"2,228.18",VEHICLE REPAIRS AND MAINTENANCE,AUTOMOTIVE SERVICE SHOPS
27/03/2020,COMMUNICATIONS,APPLE.COM/UK,"1,219.00",EQUIPMENT,ELECTRONIC SALES
